Workbook

Sheet Lifetable
A1: X | B1: Sx | C1: Dx | D1: dx | E1: px | F1: lx | G1: mx | H1: lxmx | I1: repro | J1: X | K1: xlxmx | L1: repro | N1: calc_r | O1: r_trial | P1: tolerance
A2: 0 | B2: 1000 | C2: =B2*D2 -> 250 | D2: 0.25 | E2: =1-D2 -> 0.75 | F2: 1 | G2: 0 | H2: =F:F*G:G -> 0 | I2: =G2>0 -> FALSE | J2: =A2 -> 0 | K2: =A2*H2 -> 0 | L2: =TRUE -> TRUE | N2: =EXP(-r_trial*A2)*H2 -> 0 | O2: 0.00436613647 | P2: 1e-06
A3: 1 | B3: =B2-C2 -> 750 | C3: 150 | D3: 0.2 | E3: 0.8 | F3: =F2*E2 -> 0.75 | G3: 0 | H3: =F3*G3 -> 0 | I3: =G3>0 -> FALSE | J3: =A3 -> 1 | K3: =A3*H3 -> 0 | N3: 0
A4: 2 | B4: =B3-C3 -> 600 | C4: 120 | D4: 0.2 | E4: 0.8 | F4: =F3*E3 -> 0.6 | G4: 1.2 | H4: 0.72 | I4: TRUE | J4: 2 | K4: 1.44 | N4: 0.7137401347
A5: 3 | B5: =B4-C4 -> 480 | C5: 120 | D5: 0.25 | E5: 0.75 | F5: =F4*E4 -> 0.48 | G5: 1.4 | H5: 0.672 | I5: TRUE | J5: 3 | K5: 2.016 | N5: 0.663255265
A6: 4 | B6: =B5-C5 -> 360 | C6: 180 | D6: 0.5 | E6: 0.5 | F6: =F5*E5 -> 0.36 | G6: 1.03 | H6: 0.3708 | I6: TRUE | J6: 4 | K6: 1.4832 | N6: 0.3643803675
A7: 5 | B7: 180 | C7: 180 | D7: 1 | E7: 0 | F7: 0.18 | G7: 0.96 | H7: 0.1728 | I7: TRUE | J7: 5 | K7: 0.864 | N7: 0.1690685365
B8: 0 | C8: 0 | E8: 1 | F8: 0 | H8: 0 | I8: FALSE | J8: 0 | K8: 0 | N8: 0
B9: 0 | C9: 0 | E9: 1 | F9: 0 | H9: 0 | I9: FALSE | J9: 0 | K9: 0 | N9: 0
B10: 0 | C10: 0 | E10: 1 | F10: 0 | H10: 0 | I10: FALSE | J10: 0 | K10: 0 | N10: 0
B11: 0 | C11: 0 | E11: 1 | F11: 0 | H11: 0 | I11: FALSE | J11: 0 | K11: 0 | N11: 0
B12: 0 | C12: 0 | E12: 1 | F12: 0 | H12: 0 | I12: FALSE | J12: 0 | K12: 0 | N12: 0
B13: 0 | C13: 0 | E13: 1 | F13: 0 | H13: 0 | I13: FALSE | J13: 0 | K13: 0 | N13: 0
B14: 0 | C14: 0 | E14: 1 | F14: 0 | H14: 0 | I14: FALSE | J14: 0 | K14: 0 | N14: 0
B15: 0 | C15: 0 | E15: 1 | F15: 0 | H15: 0 | I15: FALSE | J15: 0 | K15: 0 | N15: 0
B16: 0 | C16: 0 | E16: 1 | F16: 0 | H16: 0 | I16: FALSE | J16: 0 | K16: 0 | N16: 0
B17: 0 | C17: 0 | E17: 1 | F17: 0 | H17: 0 | I17: FALSE | J17: 0 | K17: 0 | N17: 0
B18: 0 | C18: 0 | E18: 1 | F18: 0 | H18: 0 | I18: FALSE | J18: 0 | K18: 0 | N18: 0
B19: 0 | C19: 0 | E19: 1 | F19: 0 | H19: 0 | I19: =G19>0 -> FALSE | J19: =A19 -> 0 | K19: =A19*H19 -> 0 | N19: =EXP(-r_trial*A19)*H19 -> 0
B20: 0 | C20: 0 | E20: 1 | F20: 0 | H20: 0 | I20: FALSE | J20: 0 | K20: 0 | N20: 0
B21: 0 | C21: 0 | E21: 1 | F21: 0 | H21: 0 | I21: FALSE | J21: 0 | K21: 0 | N21: 0
B22: 0 | C22: 0 | E22: 1 | F22: 0 | H22: 0 | I22: FALSE | J22: 0 | K22: 0 | N22: 0
N23: =SUM(N2:N22) -> 1.910444304
A24: R0 = | B24: =SUM(H2:H22) -> 1.9356
A26: α = | B26: =VLOOKUP(TRUE,I2:J22, 2, FALSE) -> 2
A27: ω = | B27: =DMAX(I:J,"X",L1:L2) -> 5
A29: T = | B29: =SUM(INDEX(K2:K22,MATCH(B26,A2:A22)):INDEX(K2:K22, MATCH(B27,A2:A22)))/B24 -> 2.998140112
A31: rest = | B31: =LOG(B24, 2.71828)/B29 -> 0.2202758295
A33: r =

Sheet Population
A1: X | B1: y0 | C1: y1 | D1: y2 | E1: y3 | F1: y4 | G1: y5 | H1: y6 | I1: y7 | J1: y8 | K1: y9 | L1: y10 | M1: y11 | N1: y12 | O1: y13 | P1: y14 | Q1: y15 | R1: y16 | S1: y17 | T1: y18 | U1: y19 | V1: y20 | W1: y21 | X1: y22 | Y1: y23 | Z1: y24 | AA1: y25 | AB1: y26 | AC1: y27 | AD1: y28 | AE1: y29 | AF1: y30 | AG1: y31 | AH1: y32 | AI1: y33 | AJ1: y34 | AK1: y35 | AL1: y36 | AM1: y37 | AN1: y38 | AO1: y39 | AP1: y40 | AQ1: y41 | AR1: y42 | AS1: y43 | AT1: y44 | AU1: y45 | AV1: y46 | AW1: y47 | AX1: y48 | AY1: y49 | AZ1: y50 | BA1: y51 | BB1: y52 | BE1: y1 | BF1: y2 | BG1: y3 | BH1: y4 | BI1: y5 | BJ1: y6 | BK1: y7 | BL1: y8 | BM1: y9 | BN1: y10 | BO1: y11 | BP1: y12 | BQ1: y13 | BR1: y14 | BS1: y15 | BT1: y16 | BU1: y17 | BV1: y18 | BW1: y19 | BX1: y20 | BY1: y21 | BZ1: y22 | CA1: y23 | CB1: y24 | CC1: y25 | CD1: y26 | CE1: y27 | CF1: y28 | CG1: y29 | CH1: y30 | CI1: y31 | CJ1: y32 | CK1: y33 | CL1: y34 | CM1: y35 | CN1: y36 | CO1: y37 | CP1: y38 | CQ1: y39 | CR1: y40 | CS1: y41 | CT1: y42 | CU1: y43 | CV1: y44 | CW1: y45 | CX1: y46 | CY1: y47 | CZ1: y48 | DA1: y49 | DB1: y50 | DC1: y51 | DD1: y52
A2: =IF(Lifetable!A2 = "", "", VALUE(Lifetable!A2)) -> 0 | B2: 10 | C2: =BE24 -> 25.4075 | D2: 22.728 | E2: 31.767 | F2: 39.2196 | G2: 49.294557 | H2: 62.4034944 | I2: 77.55425424 | J2: 98.08842355 | K2: 122.8297799 | L2: 154.397439 | M2: 193.8933035 | N2: 243.4803307 | O2: 305.8532195 | P2: 384.0776944 | Q2: 482.4086147 | R2: 605.8565729 | S2: 760.9181881 | T2: 955.662767 | U2: 1200.242452 | V2: 1507.42604 | W2: 1893.220425 | X2: 2377.756094 | Y2: 2986.297433 | Z2: 3750.583985 | AA2: 4710.4756 | AB2: 5916.032793 | AC2: 7430.130211 | AD2: 9331.731952 | AE2: 11720.01305 | AF2: 14719.52965 | AG2: 18486.71602 | AH2: 23218.04283 | AI2: =CK24 -> 29160.26358 | AJ2: 36623.28385 | AK2: 45996.32358 | AL2: 57768.21631 | AM2: 72552.90327 | AN2: 91121.45239 | AO2: 114442.2719 | AP2: 143731.616 | AQ2: 180517.0161 | AR2: 226716.9465 | AS2: 284740.879 | AT2: 357614.9442 | AU2: 449139.7538 | AV2: 564088.6146 | AW2: 708456.4715 | AX2: 889772.5623 | AY2: 1117493.092 | AZ2: 1403494.401 | BA2: 1762692.36 | BB2: 2213820.271 | BD2: =Lifetable!$E2*Lifetable!$G3 -> 0 | BE2: =B2*$BD2 -> 0 | BF2: =C2*$BD2 -> 0 | BG2: 0 | BH2: 0 | BI2: 0 | BJ2: 0 | BK2: 0 | BL2: 0 | BM2: 0 | BN2: 0 | BO2: 0 | BP2: 0 | BQ2: 0 | BR2: 0 | BS2: 0 | BT2: 0 | BU2: 0 | BV2: 0 | BW2: 0 | BX2: 0 | BY2: 0 | BZ2: 0 | CA2: 0 | CB2: 0 | CC2: 0 | CD2: 0 | CE2: 0 | CF2: 0 | CG2: 0 | CH2: 0 | CI2: 0 | CJ2: 0 | CK2: 0 | CL2: 0 | CM2: 0 | CN2: 0 | CO2: 0 | CP2: 0 | CQ2: 0 | CR2: 0 | CS2: 0 | CT2: 0 | CU2: 0 | CV2: 0 | CW2: 0 | CX2: 0 | CY2: 0 | CZ2: 0 | DA2: 0 | DB2: 0 | DC2: 0 | DD2: 0
A3: =IF(Lifetable!A3 = "", "", VALUE(Lifetable!A3)) -> 1 | B3: 9 | C3: =B2*Lifetable!$E2 -> 7.5 | D3: =C2*Lifetable!$E2 -> 19.055625 | E3: =D2*Lifetable!$E2 -> 17.046 | F3: =E2*Lifetable!$E2 -> 23.82525 | G3: =F2*Lifetable!$E2 -> 29.4147 | H3: =G2*Lifetable!$E2 -> 36.97091775 | I3: =H2*Lifetable!$E2 -> 46.8026208 | J3: =I2*Lifetable!$E2 -> 58.16569068 | K3: =J2*Lifetable!$E2 -> 73.56631766 | L3: =K2*Lifetable!$E2 -> 92.12233493 | M3: =L2*Lifetable!$E2 -> 115.7980792 | N3: =M2*Lifetable!$E2 -> 145.4199776 | O3: =N2*Lifetable!$E2 -> 182.6102481 | P3: =O2*Lifetable!$E2 -> 229.3899146 | Q3: =P2*Lifetable!$E2 -> 288.0582708 | R3: =Q2*Lifetable!$E2 -> 361.806461 | S3: =R2*Lifetable!$E2 -> 454.3924297 | T3: =S2*Lifetable!$E2 -> 570.6886411 | U3: =T2*Lifetable!$E2 -> 716.7470752 | V3: =U2*Lifetable!$E2 -> 900.1818393 | W3: =V2*Lifetable!$E2 -> 1130.56953 | X3: =W2*Lifetable!$E2 -> 1419.915319 | Y3: =X2*Lifetable!$E2 -> 1783.317071 | Z3: =Y2*Lifetable!$E2 -> 2239.723075 | AA3: =Z2*Lifetable!$E2 -> 2812.937989 | AB3: =AA2*Lifetable!$E2 -> 3532.8567 | AC3: =AB2*Lifetable!$E2 -> 4437.024595 | AD3: =AC2*Lifetable!$E2 -> 5572.597658 | AE3: =AD2*Lifetable!$E2 -> 6998.798964 | AF3: =AE2*Lifetable!$E2 -> 8790.009791 | AG3: =AF2*Lifetable!$E2 -> 11039.64724 | AH3: =AG2*Lifetable!$E2 -> 13865.03701 | AI3: =AH2*Lifetable!$E2 -> 17413.53212 | AJ3: =AI2*Lifetable!$E2 -> 21870.19769 | AK3: =AJ2*Lifetable!$E2 -> 27467.46289 | AL3: =AK2*Lifetable!$E2 -> 34497.24269 | AM3: =AL2*Lifetable!$E2 -> 43326.16223 | AN3: =AM2*Lifetable!$E2 -> 54414.67745 | AO3: =AN2*Lifetable!$E2 -> 68341.08929 | AP3: =AO2*Lifetable!$E2 -> 85831.70396 | AQ3: =AP2*Lifetable!$E2 -> 107798.712 | AR3: =AQ2*Lifetable!$E2 -> 135387.7621 | AS3: =AR2*Lifetable!$E2 -> 170037.7099 | AT3: =AS2*Lifetable!$E2 -> 213555.6592 | AU3: =AT2*Lifetable!$E2 -> 268211.2081 | AV3: =AU2*Lifetable!$E2 -> 336854.8153 | AW3: =AV2*Lifetable!$E2 -> 423066.461 | AX3: =AW2*Lifetable!$E2 -> 531342.3536 | AY3: =AX2*Lifetable!$E2 -> 667329.4217 | AZ3: =AY2*Lifetable!$E2 -> 838119.8187 | BA3: =AZ2*Lifetable!$E2 -> 1052620.801 | BB3: =BA2*Lifetable!$E2 -> 1322019.27 | BD3: =Lifetable!$E3*Lifetable!$G4 -> 0.96 | BE3: =B3*$BD3 -> 8.64 | BF3: 7.2 | BG3: 18.2934 | BH3: 16.36416 | BI3: 22.87224 | BJ3: 28.238112 | BK3: 35.49208104 | BL3: 44.93051597 | BM3: 55.83906305 | BN3: 70.62366496 | BO3: 88.43744153 | BP3: 111.1661561 | BQ3: 139.6031785 | BR3: 175.3058381 | BS3: 220.214318 | BT3: 276.53594 | BU3: 347.3342026 | BV3: 436.2167325 | BW3: 547.8610955 | BX3: 688.0771922 | BY3: 864.1745657 | BZ3: 1085.346749 | CA3: 1363.118706 | CB3: 1711.984388 | CC3: 2150.134152 | CD3: 2700.420469 | CE3: 3391.542432 | CF3: 4259.543611 | CG3: 5349.693752 | CH3: 6718.847006 | CI3: 8438.409399 | CJ3: 10598.06135 | CK3: 13310.43553 | CL3: 16716.99084 | CM3: 20995.38978 | CN3: 26368.76437 | CO3: 33117.35298 | CP3: 41593.11574 | CQ3: 52238.09035 | CR3: 65607.44572 | CS3: 82398.4358 | CT3: 103486.7635 | CU3: 129972.2516 | CV3: 163236.2015 | CW3: 205013.4329 | CX3: 257482.7598 | CY3: 323380.6227 | CZ3: 406143.8025 | DA3: 510088.6595 | DB3: 640636.2448 | DC3: 804595.0259 | DD3: 1010515.969
A4: =IF(Lifetable!A4 = "", "", VALUE(Lifetable!A4)) -> 2 | B4: 8 | C4: =B3*Lifetable!$E3 -> 7.2 | D4: =C3*Lifetable!$E3 -> 6 | E4: =D3*Lifetable!$E3 -> 15.2445 | F4: =E3*Lifetable!$E3 -> 13.6368 | G4: =F3*Lifetable!$E3 -> 19.0602 | H4: =G3*Lifetable!$E3 -> 23.53176 | I4: =H3*Lifetable!$E3 -> 29.5767342 | J4: =I3*Lifetable!$E3 -> 37.44209664 | K4: =J3*Lifetable!$E3 -> 46.53255254 | L4: =K3*Lifetable!$E3 -> 58.85305413 | M4: =L3*Lifetable!$E3 -> 73.69786794 | N4: =M3*Lifetable!$E3 -> 92.63846339 | O4: =N3*Lifetable!$E3 -> 116.3359821 | P4: =O3*Lifetable!$E3 -> 146.0881984 | Q4: =P3*Lifetable!$E3 -> 183.5119317 | R4: =Q3*Lifetable!$E3 -> 230.4466166 | S4: =R3*Lifetable!$E3 -> 289.4451688 | T4: =S3*Lifetable!$E3 -> 363.5139438 | U4: =T3*Lifetable!$E3 -> 456.5509129 | V4: =U3*Lifetable!$E3 -> 573.3976602 | W4: =V3*Lifetable!$E3 -> 720.1454714 | X4: =W3*Lifetable!$E3 -> 904.4556243 | Y4: =X3*Lifetable!$E3 -> 1135.932255 | Z4: =Y3*Lifetable!$E3 -> 1426.653656 | AA4: =Z3*Lifetable!$E3 -> 1791.77846 | AB4: =AA3*Lifetable!$E3 -> 2250.350391 | AC4: =AB3*Lifetable!$E3 -> 2826.28536 | AD4: =AC3*Lifetable!$E3 -> 3549.619676 | AE4: =AD3*Lifetable!$E3 -> 4458.078127 | AF4: =AE3*Lifetable!$E3 -> 5599.039171 | AG4: =AF3*Lifetable!$E3 -> 7032.007832 | AH4: =AG3*Lifetable!$E3 -> 8831.717791 | AI4: =AH3*Lifetable!$E3 -> 11092.02961 | AJ4: =AI3*Lifetable!$E3 -> 13930.8257 | AK4: =AJ3*Lifetable!$E3 -> 17496.15815 | AL4: =AK3*Lifetable!$E3 -> 21973.97031 | AM4: =AL3*Lifetable!$E3 -> 27597.79415 | AN4: =AM3*Lifetable!$E3 -> 34660.92979 | AO4: =AN3*Lifetable!$E3 -> 43531.74196 | AP4: =AO3*Lifetable!$E3 -> 54672.87143 | AQ4: =AP3*Lifetable!$E3 -> 68665.36317 | AR4: =AQ3*Lifetable!$E3 -> 86238.96962 | AS4: =AR3*Lifetable!$E3 -> 108310.2097 | AT4: =AS3*Lifetable!$E3 -> 136030.1679 | AU4: =AT3*Lifetable!$E3 -> 170844.5274 | AV4: =AU3*Lifetable!$E3 -> 214568.9665 | AW4: =AV3*Lifetable!$E3 -> 269483.8523 | AX4: =AW3*Lifetable!$E3 -> 338453.1688 | AY4: =AX3*Lifetable!$E3 -> 425073.8829 | AZ4: =AY3*Lifetable!$E3 -> 533863.5374 | BA4: =AZ3*Lifetable!$E3 -> 670495.8549 | BB4: =BA3*Lifetable!$E3 -> 842096.6408 | BD4: =Lifetable!$E4*Lifetable!$G5 -> 1.12 | BE4: 8.96 | BF4: 8.064 | BG4: 6.72 | BH4: 17.07384 | BI4: 15.273216 | BJ4: 21.347424 | BK4: 26.3555712 | BL4: 33.1259423 | BM4: 41.93514824 | BN4: 52.11645885 | BO4: 65.91542063 | BP4: 82.5416121 | BQ4: 103.755079 | BR4: 130.2962999 | BS4: 163.6187823 | BT4: 205.5333635 | BU4: 258.1002106 | BV4: 324.1785891 | BW4: 407.135617 | BX4: 511.3370224 | BY4: 642.2053794 | BZ4: 806.562928 | CA4: 1012.990299 | CB4: 1272.244126 | CC4: 1597.852095 | CD4: 2006.791875 | CE4: 2520.392438 | CF4: 3165.439603 | CG4: 3975.574037 | CH4: 4993.047502 | CI4: 6270.923872 | CJ4: 7875.848772 | CK4: 9891.523925 | CL4: 12423.07317 | CM4: 15602.52478 | CN4: 19595.69713 | CO4: 24610.84675 | CP4: 30909.52945 | CQ4: 38820.24136 | CR4: 48755.551 | CS4: 61233.61601 | CT4: 76905.20675 | CU4: 96587.64598 | CV4: 121307.4348 | CW4: 152353.7881 | CX4: 191345.8707 | CY4: 240317.2425 | CZ4: 301821.9145 | DA4: 379067.549 | DB4: 476082.7488 | DC4: 597927.1618 | DD4: 750955.3575
A5: =IF(Lifetable!A5 = "", "", VALUE(Lifetable!A5)) -> 3 | B5: 7 | C5: =B4*Lifetable!$E4 -> 6.4 | D5: =C4*Lifetable!$E4 -> 5.76 | E5: =D4*Lifetable!$E4 -> 4.8 | F5: =E4*Lifetable!$E4 -> 12.1956 | G5: =F4*Lifetable!$E4 -> 10.90944 | H5: =G4*Lifetable!$E4 -> 15.24816 | I5: =H4*Lifetable!$E4 -> 18.825408 | J5: =I4*Lifetable!$E4 -> 23.66138736 | K5: =J4*Lifetable!$E4 -> 29.95367731 | L5: =K4*Lifetable!$E4 -> 37.22604204 | M5: =L4*Lifetable!$E4 -> 47.0824433 | N5: =M4*Lifetable!$E4 -> 58.95829435 | O5: =N4*Lifetable!$E4 -> 74.11077071 | P5: =O4*Lifetable!$E4 -> 93.06878566 | Q5: =P4*Lifetable!$E4 -> 116.8705588 | R5: =Q4*Lifetable!$E4 -> 146.8095453 | S5: =R4*Lifetable!$E4 -> 184.3572933 | T5: =S4*Lifetable!$E4 -> 231.556135 | U5: =T4*Lifetable!$E4 -> 290.811155 | V5: =U4*Lifetable!$E4 -> 365.2407303 | W5: =V4*Lifetable!$E4 -> 458.7181281 | X5: =W4*Lifetable!$E4 -> 576.1163771 | Y5: =X4*Lifetable!$E4 -> 723.5644994 | Z5: =Y4*Lifetable!$E4 -> 908.745804 | AA5: =Z4*Lifetable!$E4 -> 1141.322925 | AB5: =AA4*Lifetable!$E4 -> 1433.422768 | AC5: =AB4*Lifetable!$E4 -> 1800.280313 | AD5: =AC4*Lifetable!$E4 -> 2261.028288 | AE5: =AD4*Lifetable!$E4 -> 2839.695741 | AF5: =AE4*Lifetable!$E4 -> 3566.462501 | AG5: =AF4*Lifetable!$E4 -> 4479.231337 | AH5: =AG4*Lifetable!$E4 -> 5625.606266 | AI5: =AH4*Lifetable!$E4 -> 7065.374232 | AJ5: =AI4*Lifetable!$E4 -> 8873.62369 | AK5: =AJ4*Lifetable!$E4 -> 11144.66056 | AL5: =AK4*Lifetable!$E4 -> 13996.92652 | AM5: =AL4*Lifetable!$E4 -> 17579.17625 | AN5: =AM4*Lifetable!$E4 -> 22078.23532 | AO5: =AN4*Lifetable!$E4 -> 27728.74383 | AP5: =AO4*Lifetable!$E4 -> 34825.39357 | AQ5: =AP4*Lifetable!$E4 -> 43738.29715 | AR5: =AQ4*Lifetable!$E4 -> 54932.29053 | AS5: =AR4*Lifetable!$E4 -> 68991.1757 | AT5: =AS4*Lifetable!$E4 -> 86648.16774 | AU5: =AT4*Lifetable!$E4 -> 108824.1343 | AV5: =AU4*Lifetable!$E4 -> 136675.6219 | AW5: =AV4*Lifetable!$E4 -> 171655.1732 | AX5: =AW4*Lifetable!$E4 -> 215587.0818 | AY5: =AX4*Lifetable!$E4 -> 270762.535 | AZ5: =AY4*Lifetable!$E4 -> 340059.1063 | BA5: =AZ4*Lifetable!$E4 -> 427090.8299 | BB5: =BA4*Lifetable!$E4 -> 536396.6839 | BD5: =Lifetable!$E5*Lifetable!$G6 -> 0.7725 | BE5: 5.4075 | BF5: 4.944 | BG5: 4.4496 | BH5: 3.708 | BI5: 9.421101 | BJ5: 8.4275424 | BK5: 11.7792036 | BL5: 14.54262768 | BM5: 18.27842174 | BN5: 23.13921572 | BO5: 28.75711747 | BP5: 36.37118745 | BQ5: 45.54528239 | BR5: 57.25057037 | BS5: 71.89563692 | BT5: 90.28250664 | BU5: 113.4103738 | BV5: 142.4160091 | BW5: 178.8771143 | BX5: 224.6516172 | BY5: 282.1484642 | BZ5: 354.359754 | CA5: 445.0499013 | CB5: 558.9535758 | CC5: 702.0061336 | CD5: 881.6719597 | CE5: 1107.319088 | CF5: 1390.716542 | CG5: 1746.644353 | CH5: 2193.66496 | CI5: 2755.092282 | CJ5: 3460.206208 | CK5: 4345.78084 | CL5: 5458.001595 | CM5: 6854.8743 | CN5: 8609.250281 | CO5: 10812.62574 | CP5: 13579.91365 | CQ5: 17055.43678 | CR5: 21420.45461 | CS5: 26902.61653 | CT5: 33787.83455 | CU5: 42435.19444 | CV5: 53295.68323 | CW5: 66935.70958 | CX5: 84066.64377 | CY5: 105581.9179 | CZ5: 132603.6213 | DA5: 166541.0207 | DB5: 209164.0583 | DC5: 262695.6596 | DD5: 329927.6661
A6: =IF(Lifetable!A6 = "", "", VALUE(Lifetable!A6)) -> 4 | B6: 5 | C6: =B5*Lifetable!$E5 -> 5.25 | D6: =C5*Lifetable!$E5 -> 4.8 | E6: =D5*Lifetable!$E5 -> 4.32 | F6: =E5*Lifetable!$E5 -> 3.6 | G6: =F5*Lifetable!$E5 -> 9.1467 | H6: =G5*Lifetable!$E5 -> 8.18208 | I6: =H5*Lifetable!$E5 -> 11.43612 | J6: =I5*Lifetable!$E5 -> 14.119056 | K6: =J5*Lifetable!$E5 -> 17.74604052 | L6: =K5*Lifetable!$E5 -> 22.46525798 | M6: =L5*Lifetable!$E5 -> 27.91953153 | N6: =M5*Lifetable!$E5 -> 35.31183248 | O6: =N5*Lifetable!$E5 -> 44.21872077 | P6: =O5*Lifetable!$E5 -> 55.58307803 | Q6: =P5*Lifetable!$E5 -> 69.80158925 | R6: =Q5*Lifetable!$E5 -> 87.65291907 | S6: =R5*Lifetable!$E5 -> 110.107159 | T6: =S5*Lifetable!$E5 -> 138.26797 | U6: =T5*Lifetable!$E5 -> 173.6671013 | V6: =U5*Lifetable!$E5 -> 218.1083663 | W6: =V5*Lifetable!$E5 -> 273.9305477 | X6: =W5*Lifetable!$E5 -> 344.0385961 | Y6: =X5*Lifetable!$E5 -> 432.0872829 | Z6: =Y5*Lifetable!$E5 -> 542.6733746 | AA6: =Z5*Lifetable!$E5 -> 681.559353 | AB6: =AA5*Lifetable!$E5 -> 855.9921939 | AC6: =AB5*Lifetable!$E5 -> 1075.067076 | AD6: =AC5*Lifetable!$E5 -> 1350.210235 | AE6: =AD5*Lifetable!$E5 -> 1695.771216 | AF6: =AE5*Lifetable!$E5 -> 2129.771806 | AG6: =AF5*Lifetable!$E5 -> 2674.846876 | AH6: =AG5*Lifetable!$E5 -> 3359.423503 | AI6: =AH5*Lifetable!$E5 -> 4219.204699 | AJ6: =AI5*Lifetable!$E5 -> 5299.030674 | AK6: =AJ5*Lifetable!$E5 -> 6655.217767 | AL6: =AK5*Lifetable!$E5 -> 8358.495419 | AM6: =AL5*Lifetable!$E5 -> 10497.69489 | AN6: =AM5*Lifetable!$E5 -> 13184.38219 | AO6: =AN5*Lifetable!$E5 -> 16558.67649 | AP6: =AO5*Lifetable!$E5 -> 20796.55787 | AQ6: =AP5*Lifetable!$E5 -> 26119.04518 | AR6: =AQ5*Lifetable!$E5 -> 32803.72286 | AS6: =AR5*Lifetable!$E5 -> 41199.2179 | AT6: =AS5*Lifetable!$E5 -> 51743.38177 | AU6: =AT5*Lifetable!$E5 -> 64986.1258 | AV6: =AU5*Lifetable!$E5 -> 81618.10075 | AW6: =AV5*Lifetable!$E5 -> 102506.7164 | AX6: =AW5*Lifetable!$E5 -> 128741.3799 | AY6: =AX5*Lifetable!$E5 -> 161690.3114 | AZ6: =AY5*Lifetable!$E5 -> 203071.9013 | BA6: =AZ5*Lifetable!$E5 -> 255044.3297 | BB6: =BA5*Lifetable!$E5 -> 320318.1224 | BD6: =Lifetable!$E6*Lifetable!$G7 -> 0.48 | BE6: 2.4 | BF6: 2.52 | BG6: 2.304 | BH6: 2.0736 | BI6: 1.728 | BJ6: 4.390416 | BK6: 3.9273984 | BL6: 5.4893376 | BM6: 6.77714688 | BN6: 8.51809945 | BO6: 10.78332383 | BP6: 13.40137513 | BQ6: 16.94967959 | BR6: 21.22498597 | BS6: 26.67987746 | BT6: 33.50476284 | BU6: 42.07340115 | BV6: 52.85143632 | BW6: 66.36862559 | BX6: 83.36020861 | BY6: 104.6920158 | BZ6: 131.4866629 | CA6: 165.1385261 | CB6: 207.4018958 | CC6: 260.4832198 | CD6: 327.1484895 | CE6: 410.8762531 | CF6: 516.0321964 | CG6: 648.1009126 | CH6: 813.9701837 | CI6: 1022.290467 | CJ6: 1283.9265 | CK6: 1612.523281 | CL6: 2025.218256 | CM6: 2543.534724 | CN6: 3194.504528 | CO6: 4012.077801 | CP6: 5038.893547 | CQ6: 6328.50345 | CR6: 7948.164715 | CS6: 9982.347778 | CT6: 12537.14168 | CU6: 15745.78697 | CV6: 19775.62459 | CW6: 24836.82325 | CX6: 31193.34039 | CY6: 39176.68836 | CZ6: 49203.22389 | DA6: 61795.86235 | DB6: 77611.34945 | DC6: 97474.51261 | DD6: 122421.2783
A7: =IF(Lifetable!A7 = "", "", VALUE(Lifetable!A7)) -> 5 | B7: 3 | C7: =B6*Lifetable!$E6 -> 2.5 | D7: =C6*Lifetable!$E6 -> 2.625 | E7: =D6*Lifetable!$E6 -> 2.4 | F7: =E6*Lifetable!$E6 -> 2.16 | G7: =F6*Lifetable!$E6 -> 1.8 | H7: =G6*Lifetable!$E6 -> 4.57335 | I7: =H6*Lifetable!$E6 -> 4.09104 | J7: =I6*Lifetable!$E6 -> 5.71806 | K7: =J6*Lifetable!$E6 -> 7.059528 | L7: =K6*Lifetable!$E6 -> 8.87302026 | M7: =L6*Lifetable!$E6 -> 11.23262899 | N7: =M6*Lifetable!$E6 -> 13.95976576 | O7: =N6*Lifetable!$E6 -> 17.65591624 | P7: =O6*Lifetable!$E6 -> 22.10936038 | Q7: =P6*Lifetable!$E6 -> 27.79153902 | R7: =Q6*Lifetable!$E6 -> 34.90079462 | S7: =R6*Lifetable!$E6 -> 43.82645953 | T7: =S6*Lifetable!$E6 -> 55.0535795 | U7: =T6*Lifetable!$E6 -> 69.13398499 | V7: =U6*Lifetable!$E6 -> 86.83355064 | W7: =V6*Lifetable!$E6 -> 109.0541831 | X7: =W6*Lifetable!$E6 -> 136.9652739 | Y7: =X6*Lifetable!$E6 -> 172.0192981 | Z7: =Y6*Lifetable!$E6 -> 216.0436414 | AA7: =Z6*Lifetable!$E6 -> 271.3366873 | AB7: =AA6*Lifetable!$E6 -> 340.7796765 | AC7: =AB6*Lifetable!$E6 -> 427.9960969 | AD7: =AC6*Lifetable!$E6 -> 537.5335379 | AE7: =AD6*Lifetable!$E6 -> 675.1051173 | AF7: =AE6*Lifetable!$E6 -> 847.885608 | AG7: =AF6*Lifetable!$E6 -> 1064.885903 | AH7: =AG6*Lifetable!$E6 -> 1337.423438 | AI7: =AH6*Lifetable!$E6 -> 1679.711751 | AJ7: =AI6*Lifetable!$E6 -> 2109.60235 | AK7: =AJ6*Lifetable!$E6 -> 2649.515337 | AL7: =AK6*Lifetable!$E6 -> 3327.608884 | AM7: =AL6*Lifetable!$E6 -> 4179.247709 | AN7: =AM6*Lifetable!$E6 -> 5248.847445 | AO7: =AN6*Lifetable!$E6 -> 6592.191094 | AP7: =AO6*Lifetable!$E6 -> 8279.338245 | AQ7: =AP6*Lifetable!$E6 -> 10398.27894 | AR7: =AQ6*Lifetable!$E6 -> 13059.52259 | AS7: =AR6*Lifetable!$E6 -> 16401.86143 | AT7: =AS6*Lifetable!$E6 -> 20599.60895 | AU7: =AT6*Lifetable!$E6 -> 25871.69089 | AV7: =AU6*Lifetable!$E6 -> 32493.0629 | AW7: =AV6*Lifetable!$E6 -> 40809.05038 | AX7: =AW6*Lifetable!$E6 -> 51253.35822 | AY7: =AX6*Lifetable!$E6 -> 64370.68995 | AZ7: =AY6*Lifetable!$E6 -> 80845.15568 | BA7: =AZ6*Lifetable!$E6 -> 101535.9506 | BB7: =BA6*Lifetable!$E6 -> 127522.1649 | BD7: =Lifetable!$E7*Lifetable!$G8 -> 0 | BE7: 0 | BF7: =C7*$BD7 -> 0 | BG7: =D7*$BD7 -> 0 | BH7: =E7*$BD7 -> 0 | BI7: =F7*$BD7 -> 0 | BJ7: =G7*$BD7 -> 0 | BK7: =H7*$BD7 -> 0 | BL7: =I7*$BD7 -> 0 | BM7: =J7*$BD7 -> 0 | BN7: =K7*$BD7 -> 0 | BO7: =L7*$BD7 -> 0 | BP7: =M7*$BD7 -> 0 | BQ7: =N7*$BD7 -> 0 | BR7: =O7*$BD7 -> 0 | BS7: =P7*$BD7 -> 0 | BT7: =Q7*$BD7 -> 0 | BU7: =R7*$BD7 -> 0 | BV7: =S7*$BD7 -> 0 | BW7: =T7*$BD7 -> 0 | BX7: =U7*$BD7 -> 0 | BY7: =V7*$BD7 -> 0 | BZ7: =W7*$BD7 -> 0 | CA7: =X7*$BD7 -> 0 | CB7: =Y7*$BD7 -> 0 | CC7: =Z7*$BD7 -> 0 | CD7: =AA7*$BD7 -> 0 | CE7: =AB7*$BD7 -> 0 | CF7: =AC7*$BD7 -> 0 | CG7: =AD7*$BD7 -> 0 | CH7: =AE7*$BD7 -> 0 | CI7: =AF7*$BD7 -> 0 | CJ7: =AG7*$BD7 -> 0 | CK7: =AH7*$BD7 -> 0 | CL7: =AI7*$BD7 -> 0 | CM7: =AJ7*$BD7 -> 0 | CN7: =AK7*$BD7 -> 0 | CO7: =AL7*$BD7 -> 0 | CP7: =AM7*$BD7 -> 0 | CQ7: =AN7*$BD7 -> 0 | CR7: =AO7*$BD7 -> 0 | CS7: =AP7*$BD7 -> 0 | CT7: =AQ7*$BD7 -> 0 | CU7: =AR7*$BD7 -> 0 | CV7: =AS7*$BD7 -> 0 | CW7: =AT7*$BD7 -> 0 | CX7: =AU7*$BD7 -> 0 | CY7: =AV7*$BD7 -> 0 | CZ7: =AW7*$BD7 -> 0 | DA7: =AX7*$BD7 -> 0 | DB7: =AY7*$BD7 -> 0 | DC7: =AZ7*$BD7 -> 0 | DD7: =BA7*$BD7 -> 0
A8: =IF(Lifetable!A8 = "", "", VALUE(Lifetable!A8)) ->  | C8: =B7*Lifetable!$E7 -> 0 | D8: =C7*Lifetable!$E7 -> 0 | E8: =D7*Lifetable!$E7 -> 0 | F8: =E7*Lifetable!$E7 -> 0 | G8: =F7*Lifetable!$E7 -> 0 | H8: =G7*Lifetable!$E7 -> 0 | I8: =H7*Lifetable!$E7 -> 0 | J8: =I7*Lifetable!$E7 -> 0 | K8: =J7*Lifetable!$E7 -> 0 | L8: =K7*Lifetable!$E7 -> 0 | M8: =L7*Lifetable!$E7 -> 0 | N8: =M7*Lifetable!$E7 -> 0 | O8: =N7*Lifetable!$E7 -> 0 | P8: =O7*Lifetable!$E7 -> 0 | Q8: =P7*Lifetable!$E7 -> 0 | R8: =Q7*Lifetable!$E7 -> 0 | S8: =R7*Lifetable!$E7 -> 0 | T8: =S7*Lifetable!$E7 -> 0 | U8: =T7*Lifetable!$E7 -> 0 | V8: =U7*Lifetable!$E7 -> 0 | W8: =V7*Lifetable!$E7 -> 0 | X8: =W7*Lifetable!$E7 -> 0 | Y8: =X7*Lifetable!$E7 -> 0 | Z8: =Y7*Lifetable!$E7 -> 0 | AA8: =Z7*Lifetable!$E7 -> 0 | AB8: =AA7*Lifetable!$E7 -> 0 | AC8: =AB7*Lifetable!$E7 -> 0 | AD8: =AC7*Lifetable!$E7 -> 0 | AE8: =AD7*Lifetable!$E7 -> 0 | AF8: =AE7*Lifetable!$E7 -> 0 | AG8: =AF7*Lifetable!$E7 -> 0 | AH8: =AG7*Lifetable!$E7 -> 0 | AI8: =AH7*Lifetable!$E7 -> 0 | AJ8: =AI7*Lifetable!$E7 -> 0 | AK8: =AJ7*Lifetable!$E7 -> 0 | AL8: =AK7*Lifetable!$E7 -> 0 | AM8: =AL7*Lifetable!$E7 -> 0 | AN8: =AM7*Lifetable!$E7 -> 0 | AO8: =AN7*Lifetable!$E7 -> 0 | AP8: =AO7*Lifetable!$E7 -> 0 | AQ8: =AP7*Lifetable!$E7 -> 0 | AR8: =AQ7*Lifetable!$E7 -> 0 | AS8: =AR7*Lifetable!$E7 -> 0 | AT8: =AS7*Lifetable!$E7 -> 0 | AU8: =AT7*Lifetable!$E7 -> 0 | AV8: =AU7*Lifetable!$E7 -> 0 | AW8: =AV7*Lifetable!$E7 -> 0 | AX8: =AW7*Lifetable!$E7 -> 0 | AY8: =AX7*Lifetable!$E7 -> 0 | AZ8: =AY7*Lifetable!$E7 -> 0 | BA8: =AZ7*Lifetable!$E7 -> 0 | BB8: =BA7*Lifetable!$E7 -> 0 | BD8: =Lifetable!$E8*Lifetable!$G9 -> 0 | BE8: 0 | BF8: 0 | BG8: 0 | BH8: 0 | BI8: 0 | BJ8: 0 | BK8: 0 | BL8: 0 | BM8: 0 | BN8: 0 | BO8: 0 | BP8: 0 | BQ8: 0 | BR8: 0 | BS8: 0 | BT8: 0 | BU8: 0 | BV8: 0 | BW8: 0 | BX8: 0 | BY8: 0 | BZ8: 0 | CA8: 0 | CB8: 0 | CC8: 0 | CD8: 0 | CE8: 0 | CF8: 0 | CG8: 0 | CH8: 0 | CI8: 0 | CJ8: 0 | CK8: 0 | CL8: 0 | CM8: 0 | CN8: 0 | CO8: 0 | CP8: 0 | CQ8: 0 | CR8: 0 | CS8: 0 | CT8: 0 | CU8: 0 | CV8: 0 | CW8: 0 | CX8: 0 | CY8: 0 | CZ8: 0 | DA8: 0 | DB8: 0 | DC8: 0 | DD8: 0
A9: =IF(Lifetable!A9 = "", "", VALUE(Lifetable!A9)) ->  | C9: =B8*Lifetable!$E8 -> 0 | D9: =C8*Lifetable!$E8 -> 0 | E9: =D8*Lifetable!$E8 -> 0 | F9: =E8*Lifetable!$E8 -> 0 | G9: =F8*Lifetable!$E8 -> 0 | H9: =G8*Lifetable!$E8 -> 0 | I9: =H8*Lifetable!$E8 -> 0 | J9: =I8*Lifetable!$E8 -> 0 | K9: =J8*Lifetable!$E8 -> 0 | L9: =K8*Lifetable!$E8 -> 0 | M9: =L8*Lifetable!$E8 -> 0 | N9: =M8*Lifetable!$E8 -> 0 | O9: =N8*Lifetable!$E8 -> 0 | P9: =O8*Lifetable!$E8 -> 0 | Q9: =P8*Lifetable!$E8 -> 0 | R9: =Q8*Lifetable!$E8 -> 0 | S9: =R8*Lifetable!$E8 -> 0 | T9: =S8*Lifetable!$E8 -> 0 | U9: =T8*Lifetable!$E8 -> 0 | V9: =U8*Lifetable!$E8 -> 0 | W9: =V8*Lifetable!$E8 -> 0 | X9: =W8*Lifetable!$E8 -> 0 | Y9: =X8*Lifetable!$E8 -> 0 | Z9: =Y8*Lifetable!$E8 -> 0 | AA9: =Z8*Lifetable!$E8 -> 0 | AB9: =AA8*Lifetable!$E8 -> 0 | AC9: =AB8*Lifetable!$E8 -> 0 | AD9: =AC8*Lifetable!$E8 -> 0 | AE9: =AD8*Lifetable!$E8 -> 0 | AF9: =AE8*Lifetable!$E8 -> 0 | AG9: =AF8*Lifetable!$E8 -> 0 | AH9: =AG8*Lifetable!$E8 -> 0 | AI9: =AH8*Lifetable!$E8 -> 0 | AJ9: =AI8*Lifetable!$E8 -> 0 | AK9: =AJ8*Lifetable!$E8 -> 0 | AL9: =AK8*Lifetable!$E8 -> 0 | AM9: =AL8*Lifetable!$E8 -> 0 | AN9: =AM8*Lifetable!$E8 -> 0 | AO9: =AN8*Lifetable!$E8 -> 0 | AP9: =AO8*Lifetable!$E8 -> 0 | AQ9: =AP8*Lifetable!$E8 -> 0 | AR9: =AQ8*Lifetable!$E8 -> 0 | AS9: =AR8*Lifetable!$E8 -> 0 | AT9: =AS8*Lifetable!$E8 -> 0 | AU9: =AT8*Lifetable!$E8 -> 0 | AV9: =AU8*Lifetable!$E8 -> 0 | AW9: =AV8*Lifetable!$E8 -> 0 | AX9: =AW8*Lifetable!$E8 -> 0 | AY9: =AX8*Lifetable!$E8 -> 0 | AZ9: =AY8*Lifetable!$E8 -> 0 | BA9: =AZ8*Lifetable!$E8 -> 0 | BB9: =BA8*Lifetable!$E8 -> 0 | BD9: =Lifetable!$E9*Lifetable!$G10 -> 0 | BE9: 0 | BF9: 0 | BG9: 0 | BH9: 0 | BI9: 0 | BJ9: 0 | BK9: 0 | BL9: 0 | BM9: 0 | BN9: 0 | BO9: 0 | BP9: 0 | BQ9: 0 | BR9: 0 | BS9: 0 | BT9: 0 | BU9: 0 | BV9: 0 | BW9: 0 | BX9: 0 | BY9: 0 | BZ9: 0 | CA9: 0 | CB9: 0 | CC9: 0 | CD9: 0 | CE9: 0 | CF9: 0 | CG9: 0 | CH9: 0 | CI9: 0 | CJ9: 0 | CK9: 0 | CL9: 0 | CM9: 0 | CN9: 0 | CO9: 0 | CP9: 0 | CQ9: 0 | CR9: 0 | CS9: 0 | CT9: 0 | CU9: 0 | CV9: 0 | CW9: 0 | CX9: 0 | CY9: 0 | CZ9: 0 | DA9: 0 | DB9: 0 | DC9: 0 | DD9: 0
A10: =IF(Lifetable!A10 = "", "", VALUE(Lifetable!A10)) ->  | C10: =B9*Lifetable!$E9 -> 0 | D10: =C9*Lifetable!$E9 -> 0 | E10: =D9*Lifetable!$E9 -> 0 | F10: =E9*Lifetable!$E9 -> 0 | G10: =F9*Lifetable!$E9 -> 0 | H10: =G9*Lifetable!$E9 -> 0 | I10: =H9*Lifetable!$E9 -> 0 | J10: =I9*Lifetable!$E9 -> 0 | K10: =J9*Lifetable!$E9 -> 0 | L10: =K9*Lifetable!$E9 -> 0 | M10: =L9*Lifetable!$E9 -> 0 | N10: =M9*Lifetable!$E9 -> 0 | O10: =N9*Lifetable!$E9 -> 0 | P10: =O9*Lifetable!$E9 -> 0 | Q10: =P9*Lifetable!$E9 -> 0 | R10: =Q9*Lifetable!$E9 -> 0 | S10: =R9*Lifetable!$E9 -> 0 | T10: =S9*Lifetable!$E9 -> 0 | U10: =T9*Lifetable!$E9 -> 0 | V10: =U9*Lifetable!$E9 -> 0 | W10: =V9*Lifetable!$E9 -> 0 | X10: =W9*Lifetable!$E9 -> 0 | Y10: =X9*Lifetable!$E9 -> 0 | Z10: =Y9*Lifetable!$E9 -> 0 | AA10: =Z9*Lifetable!$E9 -> 0 | AB10: =AA9*Lifetable!$E9 -> 0 | AC10: =AB9*Lifetable!$E9 -> 0 | AD10: =AC9*Lifetable!$E9 -> 0 | AE10: =AD9*Lifetable!$E9 -> 0 | AF10: =AE9*Lifetable!$E9 -> 0 | AG10: =AF9*Lifetable!$E9 -> 0 | AH10: =AG9*Lifetable!$E9 -> 0 | AI10: =AH9*Lifetable!$E9 -> 0 | AJ10: =AI9*Lifetable!$E9 -> 0 | AK10: =AJ9*Lifetable!$E9 -> 0 | AL10: =AK9*Lifetable!$E9 -> 0 | AM10: =AL9*Lifetable!$E9 -> 0 | AN10: =AM9*Lifetable!$E9 -> 0 | AO10: =AN9*Lifetable!$E9 -> 0 | AP10: =AO9*Lifetable!$E9 -> 0 | AQ10: =AP9*Lifetable!$E9 -> 0 | AR10: =AQ9*Lifetable!$E9 -> 0 | AS10: =AR9*Lifetable!$E9 -> 0 | AT10: =AS9*Lifetable!$E9 -> 0 | AU10: =AT9*Lifetable!$E9 -> 0 | AV10: =AU9*Lifetable!$E9 -> 0 | AW10: =AV9*Lifetable!$E9 -> 0 | AX10: =AW9*Lifetable!$E9 -> 0 | AY10: =AX9*Lifetable!$E9 -> 0 | AZ10: =AY9*Lifetable!$E9 -> 0 | BA10: =AZ9*Lifetable!$E9 -> 0 | BB10: =BA9*Lifetable!$E9 -> 0 | BD10: =Lifetable!$E10*Lifetable!$G11 -> 0 | BE10: 0 | BF10: 0 | BG10: 0 | BH10: 0 | BI10: 0 | BJ10: 0 | BK10: 0 | BL10: 0 | BM10: 0 | BN10: 0 | BO10: 0 | BP10: 0 | BQ10: 0 | BR10: 0 | BS10: 0 | BT10: 0 | BU10: 0 | BV10: 0 | BW10: 0 | BX10: 0 | BY10: 0 | BZ10: 0 | CA10: 0 | CB10: 0 | CC10: 0 | CD10: 0 | CE10: 0 | CF10: 0 | CG10: 0 | CH10: 0 | CI10: 0 | CJ10: 0 | CK10: 0 | CL10: 0 | CM10: 0 | CN10: 0 | CO10: 0 | CP10: 0 | CQ10: 0 | CR10: 0 | CS10: 0 | CT10: 0 | CU10: 0 | CV10: 0 | CW10: 0 | CX10: 0 | CY10: 0 | CZ10: 0 | DA10: 0 | DB10: 0 | DC10: 0 | DD10: 0
A11: =IF(Lifetable!A11 = "", "", VALUE(Lifetable!A11)) ->  | C11: =B10*Lifetable!$E10 -> 0 | D11: =C10*Lifetable!$E10 -> 0 | E11: =D10*Lifetable!$E10 -> 0 | F11: =E10*Lifetable!$E10 -> 0 | G11: =F10*Lifetable!$E10 -> 0 | H11: =G10*Lifetable!$E10 -> 0 | I11: =H10*Lifetable!$E10 -> 0 | J11: =I10*Lifetable!$E10 -> 0 | K11: =J10*Lifetable!$E10 -> 0 | L11: =K10*Lifetable!$E10 -> 0 | M11: =L10*Lifetable!$E10 -> 0 | N11: =M10*Lifetable!$E10 -> 0 | O11: =N10*Lifetable!$E10 -> 0 | P11: =O10*Lifetable!$E10 -> 0 | Q11: =P10*Lifetable!$E10 -> 0 | R11: =Q10*Lifetable!$E10 -> 0 | S11: =R10*Lifetable!$E10 -> 0 | T11: =S10*Lifetable!$E10 -> 0 | U11: =T10*Lifetable!$E10 -> 0 | V11: =U10*Lifetable!$E10 -> 0 | W11: =V10*Lifetable!$E10 -> 0 | X11: =W10*Lifetable!$E10 -> 0 | Y11: =X10*Lifetable!$E10 -> 0 | Z11: =Y10*Lifetable!$E10 -> 0 | AA11: =Z10*Lifetable!$E10 -> 0 | AB11: =AA10*Lifetable!$E10 -> 0 | AC11: =AB10*Lifetable!$E10 -> 0 | AD11: =AC10*Lifetable!$E10 -> 0 | AE11: =AD10*Lifetable!$E10 -> 0 | AF11: =AE10*Lifetable!$E10 -> 0 | AG11: =AF10*Lifetable!$E10 -> 0 | AH11: =AG10*Lifetable!$E10 -> 0 | AI11: =AH10*Lifetable!$E10 -> 0 | AJ11: =AI10*Lifetable!$E10 -> 0 | AK11: =AJ10*Lifetable!$E10 -> 0 | AL11: =AK10*Lifetable!$E10 -> 0 | AM11: =AL10*Lifetable!$E10 -> 0 | AN11: =AM10*Lifetable!$E10 -> 0 | AO11: =AN10*Lifetable!$E10 -> 0 | AP11: =AO10*Lifetable!$E10 -> 0 | AQ11: =AP10*Lifetable!$E10 -> 0 | AR11: =AQ10*Lifetable!$E10 -> 0 | AS11: =AR10*Lifetable!$E10 -> 0 | AT11: =AS10*Lifetable!$E10 -> 0 | AU11: =AT10*Lifetable!$E10 -> 0 | AV11: =AU10*Lifetable!$E10 -> 0 | AW11: =AV10*Lifetable!$E10 -> 0 | AX11: =AW10*Lifetable!$E10 -> 0 | AY11: =AX10*Lifetable!$E10 -> 0 | AZ11: =AY10*Lifetable!$E10 -> 0 | BA11: =AZ10*Lifetable!$E10 -> 0 | BB11: =BA10*Lifetable!$E10 -> 0 | BD11: =Lifetable!$E11*Lifetable!$G12 -> 0 | BE11: 0 | BF11: 0 | BG11: 0 | BH11: 0 | BI11: 0 | BJ11: 0 | BK11: 0 | BL11: 0 | BM11: 0 | BN11: 0 | BO11: 0 | BP11: 0 | BQ11: 0 | BR11: 0 | BS11: 0 | BT11: 0 | BU11: 0 | BV11: 0 | BW11: 0 | BX11: 0 | BY11: 0 | BZ11: 0 | CA11: 0 | CB11: 0 | CC11: 0 | CD11: 0 | CE11: 0 | CF11: 0 | CG11: 0 | CH11: 0 | CI11: 0 | CJ11: 0 | CK11: 0 | CL11: 0 | CM11: 0 | CN11: 0 | CO11: 0 | CP11: 0 | CQ11: 0 | CR11: 0 | CS11: 0 | CT11: 0 | CU11: 0 | CV11: 0 | CW11: 0 | CX11: 0 | CY11: 0 | CZ11: 0 | DA11: 0 | DB11: 0 | DC11: 0 | DD11: 0
A12: =IF(Lifetable!A12 = "", "", VALUE(Lifetable!A12)) ->  | C12: =B11*Lifetable!$E11 -> 0 | D12: =C11*Lifetable!$E11 -> 0 | E12: =D11*Lifetable!$E11 -> 0 | F12: =E11*Lifetable!$E11 -> 0 | G12: =F11*Lifetable!$E11 -> 0 | H12: =G11*Lifetable!$E11 -> 0 | I12: =H11*Lifetable!$E11 -> 0 | J12: =I11*Lifetable!$E11 -> 0 | K12: =J11*Lifetable!$E11 -> 0 | L12: =K11*Lifetable!$E11 -> 0 | M12: =L11*Lifetable!$E11 -> 0 | N12: =M11*Lifetable!$E11 -> 0 | O12: =N11*Lifetable!$E11 -> 0 | P12: =O11*Lifetable!$E11 -> 0 | Q12: =P11*Lifetable!$E11 -> 0 | R12: =Q11*Lifetable!$E11 -> 0 | S12: =R11*Lifetable!$E11 -> 0 | T12: =S11*Lifetable!$E11 -> 0 | U12: =T11*Lifetable!$E11 -> 0 | V12: =U11*Lifetable!$E11 -> 0 | W12: =V11*Lifetable!$E11 -> 0 | X12: =W11*Lifetable!$E11 -> 0 | Y12: =X11*Lifetable!$E11 -> 0 | Z12: =Y11*Lifetable!$E11 -> 0 | AA12: =Z11*Lifetable!$E11 -> 0 | AB12: =AA11*Lifetable!$E11 -> 0 | AC12: =AB11*Lifetable!$E11 -> 0 | AD12: =AC11*Lifetable!$E11 -> 0 | AE12: =AD11*Lifetable!$E11 -> 0 | AF12: =AE11*Lifetable!$E11 -> 0 | AG12: =AF11*Lifetable!$E11 -> 0 | AH12: =AG11*Lifetable!$E11 -> 0 | AI12: =AH11*Lifetable!$E11 -> 0 | AJ12: =AI11*Lifetable!$E11 -> 0 | AK12: =AJ11*Lifetable!$E11 -> 0 | AL12: =AK11*Lifetable!$E11 -> 0 | AM12: =AL11*Lifetable!$E11 -> 0 | AN12: =AM11*Lifetable!$E11 -> 0 | AO12: =AN11*Lifetable!$E11 -> 0 | AP12: =AO11*Lifetable!$E11 -> 0 | AQ12: =AP11*Lifetable!$E11 -> 0 | AR12: =AQ11*Lifetable!$E11 -> 0 | AS12: =AR11*Lifetable!$E11 -> 0 | AT12: =AS11*Lifetable!$E11 -> 0 | AU12: =AT11*Lifetable!$E11 -> 0 | AV12: =AU11*Lifetable!$E11 -> 0 | AW12: =AV11*Lifetable!$E11 -> 0 | AX12: =AW11*Lifetable!$E11 -> 0 | AY12: =AX11*Lifetable!$E11 -> 0 | AZ12: =AY11*Lifetable!$E11 -> 0 | BA12: =AZ11*Lifetable!$E11 -> 0 | BB12: =BA11*Lifetable!$E11 -> 0 | BD12: =Lifetable!$E12*Lifetable!$G13 -> 0 | BE12: 0 | BF12: 0 | BG12: 0 | BH12: 0 | BI12: 0 | BJ12: 0 | BK12: 0 | BL12: 0 | BM12: 0 | BN12: 0 | BO12: 0 | BP12: 0 | BQ12: 0 | BR12: 0 | BS12: 0 | BT12: 0 | BU12: 0 | BV12: 0 | BW12: 0 | BX12: 0 | BY12: 0 | BZ12: 0 | CA12: 0 | CB12: 0 | CC12: 0 | CD12: 0 | CE12: 0 | CF12: 0 | CG12: 0 | CH12: 0 | CI12: 0 | CJ12: 0 | CK12: 0 | CL12: 0 | CM12: 0 | CN12: 0 | CO12: 0 | CP12: 0 | CQ12: 0 | CR12: 0 | CS12: 0 | CT12: 0 | CU12: 0 | CV12: 0 | CW12: 0 | CX12: 0 | CY12: 0 | CZ12: 0 | DA12: 0 | DB12: 0 | DC12: 0 | DD12: 0
A13: =IF(Lifetable!A13 = "", "", VALUE(Lifetable!A13)) ->  | C13: =B12*Lifetable!$E12 -> 0 | D13: =C12*Lifetable!$E12 -> 0 | E13: =D12*Lifetable!$E12 -> 0 | F13: =E12*Lifetable!$E12 -> 0 | G13: =F12*Lifetable!$E12 -> 0 | H13: =G12*Lifetable!$E12 -> 0 | I13: =H12*Lifetable!$E12 -> 0 | J13: =I12*Lifetable!$E12 -> 0 | K13: =J12*Lifetable!$E12 -> 0 | L13: =K12*Lifetable!$E12 -> 0 | M13: =L12*Lifetable!$E12 -> 0 | N13: =M12*Lifetable!$E12 -> 0 | O13: =N12*Lifetable!$E12 -> 0 | P13: =O12*Lifetable!$E12 -> 0 | Q13: =P12*Lifetable!$E12 -> 0 | R13: =Q12*Lifetable!$E12 -> 0 | S13: =R12*Lifetable!$E12 -> 0 | T13: =S12*Lifetable!$E12 -> 0 | U13: =T12*Lifetable!$E12 -> 0 | V13: =U12*Lifetable!$E12 -> 0 | W13: =V12*Lifetable!$E12 -> 0 | X13: =W12*Lifetable!$E12 -> 0 | Y13: =X12*Lifetable!$E12 -> 0 | Z13: =Y12*Lifetable!$E12 -> 0 | AA13: =Z12*Lifetable!$E12 -> 0 | AB13: =AA12*Lifetable!$E12 -> 0 | AC13: =AB12*Lifetable!$E12 -> 0 | AD13: =AC12*Lifetable!$E12 -> 0 | AE13: =AD12*Lifetable!$E12 -> 0 | AF13: =AE12*Lifetable!$E12 -> 0 | AG13: =AF12*Lifetable!$E12 -> 0 | AH13: =AG12*Lifetable!$E12 -> 0 | AI13: =AH12*Lifetable!$E12 -> 0 | AJ13: =AI12*Lifetable!$E12 -> 0 | AK13: =AJ12*Lifetable!$E12 -> 0 | AL13: =AK12*Lifetable!$E12 -> 0 | AM13: =AL12*Lifetable!$E12 -> 0 | AN13: =AM12*Lifetable!$E12 -> 0 | AO13: =AN12*Lifetable!$E12 -> 0 | AP13: =AO12*Lifetable!$E12 -> 0 | AQ13: =AP12*Lifetable!$E12 -> 0 | AR13: =AQ12*Lifetable!$E12 -> 0 | AS13: =AR12*Lifetable!$E12 -> 0 | AT13: =AS12*Lifetable!$E12 -> 0 | AU13: =AT12*Lifetable!$E12 -> 0 | AV13: =AU12*Lifetable!$E12 -> 0 | AW13: =AV12*Lifetable!$E12 -> 0 | AX13: =AW12*Lifetable!$E12 -> 0 | AY13: =AX12*Lifetable!$E12 -> 0 | AZ13: =AY12*Lifetable!$E12 -> 0 | BA13: =AZ12*Lifetable!$E12 -> 0 | BB13: =BA12*Lifetable!$E12 -> 0 | BD13: =Lifetable!$E13*Lifetable!$G14 -> 0 | BE13: 0 | BF13: 0 | BG13: 0 | BH13: 0 | BI13: 0 | BJ13: 0 | BK13: 0 | BL13: 0 | BM13: 0 | BN13: 0 | BO13: 0 | BP13: 0 | BQ13: 0 | BR13: 0 | BS13: 0 | BT13: 0 | BU13: 0 | BV13: 0 | BW13: 0 | BX13: 0 | BY13: 0 | BZ13: 0 | CA13: 0 | CB13: 0 | CC13: 0 | CD13: 0 | CE13: 0 | CF13: 0 | CG13: 0 | CH13: 0 | CI13: 0 | CJ13: 0 | CK13: 0 | CL13: 0 | CM13: 0 | CN13: 0 | CO13: 0 | CP13: 0 | CQ13: 0 | CR13: 0 | CS13: 0 | CT13: 0 | CU13: 0 | CV13: 0 | CW13: 0 | CX13: 0 | CY13: 0 | CZ13: 0 | DA13: 0 | DB13: 0 | DC13: 0 | DD13: 0
A14: =IF(Lifetable!A14 = "", "", VALUE(Lifetable!A14)) ->  | C14: =B13*Lifetable!$E13 -> 0 | D14: =C13*Lifetable!$E13 -> 0 | E14: =D13*Lifetable!$E13 -> 0 | F14: =E13*Lifetable!$E13 -> 0 | G14: =F13*Lifetable!$E13 -> 0 | H14: =G13*Lifetable!$E13 -> 0 | I14: =H13*Lifetable!$E13 -> 0 | J14: =I13*Lifetable!$E13 -> 0 | K14: =J13*Lifetable!$E13 -> 0 | L14: =K13*Lifetable!$E13 -> 0 | M14: =L13*Lifetable!$E13 -> 0 | N14: =M13*Lifetable!$E13 -> 0 | O14: =N13*Lifetable!$E13 -> 0 | P14: =O13*Lifetable!$E13 -> 0 | Q14: =P13*Lifetable!$E13 -> 0 | R14: =Q13*Lifetable!$E13 -> 0 | S14: =R13*Lifetable!$E13 -> 0 | T14: =S13*Lifetable!$E13 -> 0 | U14: =T13*Lifetable!$E13 -> 0 | V14: =U13*Lifetable!$E13 -> 0 | W14: =V13*Lifetable!$E13 -> 0 | X14: =W13*Lifetable!$E13 -> 0 | Y14: =X13*Lifetable!$E13 -> 0 | Z14: =Y13*Lifetable!$E13 -> 0 | AA14: =Z13*Lifetable!$E13 -> 0 | AB14: =AA13*Lifetable!$E13 -> 0 | AC14: =AB13*Lifetable!$E13 -> 0 | AD14: =AC13*Lifetable!$E13 -> 0 | AE14: =AD13*Lifetable!$E13 -> 0 | AF14: =AE13*Lifetable!$E13 -> 0 | AG14: =AF13*Lifetable!$E13 -> 0 | AH14: =AG13*Lifetable!$E13 -> 0 | AI14: =AH13*Lifetable!$E13 -> 0 | AJ14: =AI13*Lifetable!$E13 -> 0 | AK14: =AJ13*Lifetable!$E13 -> 0 | AL14: =AK13*Lifetable!$E13 -> 0 | AM14: =AL13*Lifetable!$E13 -> 0 | AN14: =AM13*Lifetable!$E13 -> 0 | AO14: =AN13*Lifetable!$E13 -> 0 | AP14: =AO13*Lifetable!$E13 -> 0 | AQ14: =AP13*Lifetable!$E13 -> 0 | AR14: =AQ13*Lifetable!$E13 -> 0 | AS14: =AR13*Lifetable!$E13 -> 0 | AT14: =AS13*Lifetable!$E13 -> 0 | AU14: =AT13*Lifetable!$E13 -> 0 | AV14: =AU13*Lifetable!$E13 -> 0 | AW14: =AV13*Lifetable!$E13 -> 0 | AX14: =AW13*Lifetable!$E13 -> 0 | AY14: =AX13*Lifetable!$E13 -> 0 | AZ14: =AY13*Lifetable!$E13 -> 0 | BA14: =AZ13*Lifetable!$E13 -> 0 | BB14: =BA13*Lifetable!$E13 -> 0 | BD14: =Lifetable!$E14*Lifetable!$G15 -> 0 | BE14: =B14*$BD14 -> 0 | BF14: =C14*$BD14 -> 0 | BG14: =D14*$BD14 -> 0 | BH14: =E14*$BD14 -> 0 | BI14: =F14*$BD14 -> 0 | BJ14: =G14*$BD14 -> 0 | BK14: =H14*$BD14 -> 0 | BL14: =I14*$BD14 -> 0 | BM14: =J14*$BD14 -> 0 | BN14: =K14*$BD14 -> 0 | BO14: =L14*$BD14 -> 0 | BP14: =M14*$BD14 -> 0 | BQ14: =N14*$BD14 -> 0 | BR14: =O14*$BD14 -> 0 | BS14: =P14*$BD14 -> 0 | BT14: =Q14*$BD14 -> 0 | BU14: =R14*$BD14 -> 0 | BV14: =S14*$BD14 -> 0 | BW14: =T14*$BD14 -> 0 | BX14: =U14*$BD14 -> 0 | BY14: =V14*$BD14 -> 0 | BZ14: =W14*$BD14 -> 0 | CA14: =X14*$BD14 -> 0 | CB14: =Y14*$BD14 -> 0 | CC14: =Z14*$BD14 -> 0 | CD14: =AA14*$BD14 -> 0 | CE14: =AB14*$BD14 -> 0 | CF14: =AC14*$BD14 -> 0 | CG14: =AD14*$BD14 -> 0 | CH14: =AE14*$BD14 -> 0 | CI14: =AF14*$BD14 -> 0 | CJ14: =AG14*$BD14 -> 0 | CK14: =AH14*$BD14 -> 0 | CL14: =AI14*$BD14 -> 0 | CM14: =AJ14*$BD14 -> 0 | CN14: =AK14*$BD14 -> 0 | CO14: =AL14*$BD14 -> 0 | CP14: =AM14*$BD14 -> 0 | CQ14: =AN14*$BD14 -> 0 | CR14: =AO14*$BD14 -> 0 | CS14: =AP14*$BD14 -> 0 | CT14: =AQ14*$BD14 -> 0 | CU14: =AR14*$BD14 -> 0 | CV14: =AS14*$BD14 -> 0 | CW14: =AT14*$BD14 -> 0 | CX14: =AU14*$BD14 -> 0 | CY14: =AV14*$BD14 -> 0 | CZ14: =AW14*$BD14 -> 0 | DA14: =AX14*$BD14 -> 0 | DB14: =AY14*$BD14 -> 0 | DC14: =AZ14*$BD14 -> 0 | DD14: =BA14*$BD14 -> 0
A15: =IF(Lifetable!A15 = "", "", VALUE(Lifetable!A15)) ->  | C15: =B14*Lifetable!$E14 -> 0 | D15: =C14*Lifetable!$E14 -> 0 | E15: =D14*Lifetable!$E14 -> 0 | F15: =E14*Lifetable!$E14 -> 0 | G15: =F14*Lifetable!$E14 -> 0 | H15: =G14*Lifetable!$E14 -> 0 | I15: =H14*Lifetable!$E14 -> 0 | J15: =I14*Lifetable!$E14 -> 0 | K15: =J14*Lifetable!$E14 -> 0 | L15: =K14*Lifetable!$E14 -> 0 | M15: =L14*Lifetable!$E14 -> 0 | N15: =M14*Lifetable!$E14 -> 0 | O15: =N14*Lifetable!$E14 -> 0 | P15: =O14*Lifetable!$E14 -> 0 | Q15: =P14*Lifetable!$E14 -> 0 | R15: =Q14*Lifetable!$E14 -> 0 | S15: =R14*Lifetable!$E14 -> 0 | T15: =S14*Lifetable!$E14 -> 0 | U15: =T14*Lifetable!$E14 -> 0 | V15: =U14*Lifetable!$E14 -> 0 | W15: =V14*Lifetable!$E14 -> 0 | X15: =W14*Lifetable!$E14 -> 0 | Y15: =X14*Lifetable!$E14 -> 0 | Z15: =Y14*Lifetable!$E14 -> 0 | AA15: =Z14*Lifetable!$E14 -> 0 | AB15: =AA14*Lifetable!$E14 -> 0 | AC15: =AB14*Lifetable!$E14 -> 0 | AD15: =AC14*Lifetable!$E14 -> 0 | AE15: =AD14*Lifetable!$E14 -> 0 | AF15: =AE14*Lifetable!$E14 -> 0 | AG15: =AF14*Lifetable!$E14 -> 0 | AH15: =AG14*Lifetable!$E14 -> 0 | AI15: =AH14*Lifetable!$E14 -> 0 | AJ15: =AI14*Lifetable!$E14 -> 0 | AK15: =AJ14*Lifetable!$E14 -> 0 | AL15: =AK14*Lifetable!$E14 -> 0 | AM15: =AL14*Lifetable!$E14 -> 0 | AN15: =AM14*Lifetable!$E14 -> 0 | AO15: =AN14*Lifetable!$E14 -> 0 | AP15: =AO14*Lifetable!$E14 -> 0 | AQ15: =AP14*Lifetable!$E14 -> 0 | AR15: =AQ14*Lifetable!$E14 -> 0 | AS15: =AR14*Lifetable!$E14 -> 0 | AT15: =AS14*Lifetable!$E14 -> 0 | AU15: =AT14*Lifetable!$E14 -> 0 | AV15: =AU14*Lifetable!$E14 -> 0 | AW15: =AV14*Lifetable!$E14 -> 0 | AX15: =AW14*Lifetable!$E14 -> 0 | AY15: =AX14*Lifetable!$E14 -> 0 | AZ15: =AY14*Lifetable!$E14 -> 0 | BA15: =AZ14*Lifetable!$E14 -> 0 | BB15: =BA14*Lifetable!$E14 -> 0 | BD15: =Lifetable!$E15*Lifetable!$G16 -> 0 | BE15: 0 | BF15: 0 | BG15: 0 | BH15: 0 | BI15: 0 | BJ15: 0 | BK15: 0 | BL15: 0 | BM15: 0 | BN15: 0 | BO15: 0 | BP15: 0 | BQ15: 0 | BR15: 0 | BS15: 0 | BT15: 0 | BU15: 0 | BV15: 0 | BW15: 0 | BX15: 0 | BY15: 0 | BZ15: 0 | CA15: 0 | CB15: 0 | CC15: 0 | CD15: 0 | CE15: 0 | CF15: 0 | CG15: 0 | CH15: 0 | CI15: 0 | CJ15: 0 | CK15: 0 | CL15: 0 | CM15: 0 | CN15: 0 | CO15: 0 | CP15: 0 | CQ15: 0 | CR15: 0 | CS15: 0 | CT15: 0 | CU15: 0 | CV15: 0 | CW15: 0 | CX15: 0 | CY15: 0 | CZ15: 0 | DA15: 0 | DB15: 0 | DC15: 0 | DD15: 0
A16: =IF(Lifetable!A16 = "", "", VALUE(Lifetable!A16)) ->  | C16: =B15*Lifetable!$E15 -> 0 | D16: =C15*Lifetable!$E15 -> 0 | E16: =D15*Lifetable!$E15 -> 0 | F16: =E15*Lifetable!$E15 -> 0 | G16: =F15*Lifetable!$E15 -> 0 | H16: =G15*Lifetable!$E15 -> 0 | I16: =H15*Lifetable!$E15 -> 0 | J16: =I15*Lifetable!$E15 -> 0 | K16: =J15*Lifetable!$E15 -> 0 | L16: =K15*Lifetable!$E15 -> 0 | M16: =L15*Lifetable!$E15 -> 0 | N16: =M15*Lifetable!$E15 -> 0 | O16: =N15*Lifetable!$E15 -> 0 | P16: =O15*Lifetable!$E15 -> 0 | Q16: =P15*Lifetable!$E15 -> 0 | R16: =Q15*Lifetable!$E15 -> 0 | S16: =R15*Lifetable!$E15 -> 0 | T16: =S15*Lifetable!$E15 -> 0 | U16: =T15*Lifetable!$E15 -> 0 | V16: =U15*Lifetable!$E15 -> 0 | W16: =V15*Lifetable!$E15 -> 0 | X16: =W15*Lifetable!$E15 -> 0 | Y16: =X15*Lifetable!$E15 -> 0 | Z16: =Y15*Lifetable!$E15 -> 0 | AA16: =Z15*Lifetable!$E15 -> 0 | AB16: =AA15*Lifetable!$E15 -> 0 | AC16: =AB15*Lifetable!$E15 -> 0 | AD16: =AC15*Lifetable!$E15 -> 0 | AE16: =AD15*Lifetable!$E15 -> 0 | AF16: =AE15*Lifetable!$E15 -> 0 | AG16: =AF15*Lifetable!$E15 -> 0 | AH16: =AG15*Lifetable!$E15 -> 0 | AI16: =AH15*Lifetable!$E15 -> 0 | AJ16: =AI15*Lifetable!$E15 -> 0 | AK16: =AJ15*Lifetable!$E15 -> 0 | AL16: =AK15*Lifetable!$E15 -> 0 | AM16: =AL15*Lifetable!$E15 -> 0 | AN16: =AM15*Lifetable!$E15 -> 0 | AO16: =AN15*Lifetable!$E15 -> 0 | AP16: =AO15*Lifetable!$E15 -> 0 | AQ16: =AP15*Lifetable!$E15 -> 0 | AR16: =AQ15*Lifetable!$E15 -> 0 | AS16: =AR15*Lifetable!$E15 -> 0 | AT16: =AS15*Lifetable!$E15 -> 0 | AU16: =AT15*Lifetable!$E15 -> 0 | AV16: =AU15*Lifetable!$E15 -> 0 | AW16: =AV15*Lifetable!$E15 -> 0 | AX16: =AW15*Lifetable!$E15 -> 0 | AY16: =AX15*Lifetable!$E15 -> 0 | AZ16: =AY15*Lifetable!$E15 -> 0 | BA16: =AZ15*Lifetable!$E15 -> 0 | BB16: =BA15*Lifetable!$E15 -> 0 | BD16: =Lifetable!$E16*Lifetable!$G17 -> 0 | BE16: 0 | BF16: 0 | BG16: 0 | BH16: 0 | BI16: 0 | BJ16: 0 | BK16: 0 | BL16: 0 | BM16: 0 | BN16: 0 | BO16: 0 | BP16: 0 | BQ16: 0 | BR16: 0 | BS16: 0 | BT16: 0 | BU16: 0 | BV16: 0 | BW16: 0 | BX16: 0 | BY16: 0 | BZ16: 0 | CA16: 0 | CB16: 0 | CC16: 0 | CD16: 0 | CE16: 0 | CF16: 0 | CG16: 0 | CH16: 0 | CI16: 0 | CJ16: 0 | CK16: 0 | CL16: 0 | CM16: 0 | CN16: 0 | CO16: 0 | CP16: 0 | CQ16: 0 | CR16: 0 | CS16: 0 | CT16: 0 | CU16: 0 | CV16: 0 | CW16: 0 | CX16: 0 | CY16: 0 | CZ16: 0 | DA16: 0 | DB16: 0 | DC16: 0 | DD16: 0
A17: =IF(Lifetable!A17 = "", "", VALUE(Lifetable!A17)) ->  | C17: =B16*Lifetable!$E16 -> 0 | D17: =C16*Lifetable!$E16 -> 0 | E17: =D16*Lifetable!$E16 -> 0 | F17: =E16*Lifetable!$E16 -> 0 | G17: =F16*Lifetable!$E16 -> 0 | H17: =G16*Lifetable!$E16 -> 0 | I17: =H16*Lifetable!$E16 -> 0 | J17: =I16*Lifetable!$E16 -> 0 | K17: =J16*Lifetable!$E16 -> 0 | L17: =K16*Lifetable!$E16 -> 0 | M17: =L16*Lifetable!$E16 -> 0 | N17: =M16*Lifetable!$E16 -> 0 | O17: =N16*Lifetable!$E16 -> 0 | P17: =O16*Lifetable!$E16 -> 0 | Q17: =P16*Lifetable!$E16 -> 0 | R17: =Q16*Lifetable!$E16 -> 0 | S17: =R16*Lifetable!$E16 -> 0 | T17: =S16*Lifetable!$E16 -> 0 | U17: =T16*Lifetable!$E16 -> 0 | V17: =U16*Lifetable!$E16 -> 0 | W17: =V16*Lifetable!$E16 -> 0 | X17: =W16*Lifetable!$E16 -> 0 | Y17: =X16*Lifetable!$E16 -> 0 | Z17: =Y16*Lifetable!$E16 -> 0 | AA17: =Z16*Lifetable!$E16 -> 0 | AB17: =AA16*Lifetable!$E16 -> 0 | AC17: =AB16*Lifetable!$E16 -> 0 | AD17: =AC16*Lifetable!$E16 -> 0 | AE17: =AD16*Lifetable!$E16 -> 0 | AF17: =AE16*Lifetable!$E16 -> 0 | AG17: =AF16*Lifetable!$E16 -> 0 | AH17: =AG16*Lifetable!$E16 -> 0 | AI17: =AH16*Lifetable!$E16 -> 0 | AJ17: =AI16*Lifetable!$E16 -> 0 | AK17: =AJ16*Lifetable!$E16 -> 0 | AL17: =AK16*Lifetable!$E16 -> 0 | AM17: =AL16*Lifetable!$E16 -> 0 | AN17: =AM16*Lifetable!$E16 -> 0 | AO17: =AN16*Lifetable!$E16 -> 0 | AP17: =AO16*Lifetable!$E16 -> 0 | AQ17: =AP16*Lifetable!$E16 -> 0 | AR17: =AQ16*Lifetable!$E16 -> 0 | AS17: =AR16*Lifetable!$E16 -> 0 | AT17: =AS16*Lifetable!$E16 -> 0 | AU17: =AT16*Lifetable!$E16 -> 0 | AV17: =AU16*Lifetable!$E16 -> 0 | AW17: =AV16*Lifetable!$E16 -> 0 | AX17: =AW16*Lifetable!$E16 -> 0 | AY17: =AX16*Lifetable!$E16 -> 0 | AZ17: =AY16*Lifetable!$E16 -> 0 | BA17: =AZ16*Lifetable!$E16 -> 0 | BB17: =BA16*Lifetable!$E16 -> 0 | BD17: =Lifetable!$E17*Lifetable!$G18 -> 0 | BE17: 0 | BF17: 0 | BG17: 0 | BH17: 0 | BI17: 0 | BJ17: 0 | BK17: 0 | BL17: 0 | BM17: 0 | BN17: 0 | BO17: 0 | BP17: 0 | BQ17: 0 | BR17: 0 | BS17: 0 | BT17: 0 | BU17: 0 | BV17: 0 | BW17: 0 | BX17: 0 | BY17: 0 | BZ17: 0 | CA17: 0 | CB17: 0 | CC17: 0 | CD17: 0 | CE17: 0 | CF17: 0 | CG17: 0 | CH17: 0 | CI17: 0 | CJ17: 0 | CK17: 0 | CL17: 0 | CM17: 0 | CN17: 0 | CO17: 0 | CP17: 0 | CQ17: 0 | CR17: 0 | CS17: 0 | CT17: 0 | CU17: 0 | CV17: 0 | CW17: 0 | CX17: 0 | CY17: 0 | CZ17: 0 | DA17: 0 | DB17: 0 | DC17: 0 | DD17: 0
A18: =IF(Lifetable!A18 = "", "", VALUE(Lifetable!A18)) ->  | C18: =B17*Lifetable!$E17 -> 0 | D18: =C17*Lifetable!$E17 -> 0 | E18: =D17*Lifetable!$E17 -> 0 | F18: =E17*Lifetable!$E17 -> 0 | G18: =F17*Lifetable!$E17 -> 0 | H18: =G17*Lifetable!$E17 -> 0 | I18: =H17*Lifetable!$E17 -> 0 | J18: =I17*Lifetable!$E17 -> 0 | K18: =J17*Lifetable!$E17 -> 0 | L18: =K17*Lifetable!$E17 -> 0 | M18: =L17*Lifetable!$E17 -> 0 | N18: =M17*Lifetable!$E17 -> 0 | O18: =N17*Lifetable!$E17 -> 0 | P18: =O17*Lifetable!$E17 -> 0 | Q18: =P17*Lifetable!$E17 -> 0 | R18: =Q17*Lifetable!$E17 -> 0 | S18: =R17*Lifetable!$E17 -> 0 | T18: =S17*Lifetable!$E17 -> 0 | U18: =T17*Lifetable!$E17 -> 0 | V18: =U17*Lifetable!$E17 -> 0 | W18: =V17*Lifetable!$E17 -> 0 | X18: =W17*Lifetable!$E17 -> 0 | Y18: =X17*Lifetable!$E17 -> 0 | Z18: =Y17*Lifetable!$E17 -> 0 | AA18: =Z17*Lifetable!$E17 -> 0 | AB18: =AA17*Lifetable!$E17 -> 0 | AC18: =AB17*Lifetable!$E17 -> 0 | AD18: =AC17*Lifetable!$E17 -> 0 | AE18: =AD17*Lifetable!$E17 -> 0 | AF18: =AE17*Lifetable!$E17 -> 0 | AG18: =AF17*Lifetable!$E17 -> 0 | AH18: =AG17*Lifetable!$E17 -> 0 | AI18: =AH17*Lifetable!$E17 -> 0 | AJ18: =AI17*Lifetable!$E17 -> 0 | AK18: =AJ17*Lifetable!$E17 -> 0 | AL18: =AK17*Lifetable!$E17 -> 0 | AM18: =AL17*Lifetable!$E17 -> 0 | AN18: =AM17*Lifetable!$E17 -> 0 | AO18: =AN17*Lifetable!$E17 -> 0 | AP18: =AO17*Lifetable!$E17 -> 0 | AQ18: =AP17*Lifetable!$E17 -> 0 | AR18: =AQ17*Lifetable!$E17 -> 0 | AS18: =AR17*Lifetable!$E17 -> 0 | AT18: =AS17*Lifetable!$E17 -> 0 | AU18: =AT17*Lifetable!$E17 -> 0 | AV18: =AU17*Lifetable!$E17 -> 0 | AW18: =AV17*Lifetable!$E17 -> 0 | AX18: =AW17*Lifetable!$E17 -> 0 | AY18: =AX17*Lifetable!$E17 -> 0 | AZ18: =AY17*Lifetable!$E17 -> 0 | BA18: =AZ17*Lifetable!$E17 -> 0 | BB18: =BA17*Lifetable!$E17 -> 0 | BD18: =Lifetable!$E18*Lifetable!$G19 -> 0 | BE18: 0 | BF18: 0 | BG18: 0 | BH18: 0 | BI18: 0 | BJ18: 0 | BK18: 0 | BL18: 0 | BM18: 0 | BN18: 0 | BO18: 0 | BP18: 0 | BQ18: 0 | BR18: 0 | BS18: 0 | BT18: 0 | BU18: 0 | BV18: 0 | BW18: 0 | BX18: 0 | BY18: 0 | BZ18: 0 | CA18: 0 | CB18: 0 | CC18: 0 | CD18: 0 | CE18: 0 | CF18: 0 | CG18: 0 | CH18: 0 | CI18: 0 | CJ18: 0 | CK18: 0 | CL18: 0 | CM18: 0 | CN18: 0 | CO18: 0 | CP18: 0 | CQ18: 0 | CR18: 0 | CS18: 0 | CT18: 0 | CU18: 0 | CV18: 0 | CW18: 0 | CX18: 0 | CY18: 0 | CZ18: 0 | DA18: 0 | DB18: 0 | DC18: 0 | DD18: 0
A19: =IF(Lifetable!A19 = "", "", VALUE(Lifetable!A19)) ->  | C19: =B18*Lifetable!$E18 -> 0 | D19: =C18*Lifetable!$E18 -> 0 | E19: =D18*Lifetable!$E18 -> 0 | F19: =E18*Lifetable!$E18 -> 0 | G19: =F18*Lifetable!$E18 -> 0 | H19: =G18*Lifetable!$E18 -> 0 | I19: =H18*Lifetable!$E18 -> 0 | J19: =I18*Lifetable!$E18 -> 0 | K19: =J18*Lifetable!$E18 -> 0 | L19: =K18*Lifetable!$E18 -> 0 | M19: =L18*Lifetable!$E18 -> 0 | N19: =M18*Lifetable!$E18 -> 0 | O19: =N18*Lifetable!$E18 -> 0 | P19: =O18*Lifetable!$E18 -> 0 | Q19: =P18*Lifetable!$E18 -> 0 | R19: =Q18*Lifetable!$E18 -> 0 | S19: =R18*Lifetable!$E18 -> 0 | T19: =S18*Lifetable!$E18 -> 0 | U19: =T18*Lifetable!$E18 -> 0 | V19: =U18*Lifetable!$E18 -> 0 | W19: =V18*Lifetable!$E18 -> 0 | X19: =W18*Lifetable!$E18 -> 0 | Y19: =X18*Lifetable!$E18 -> 0 | Z19: =Y18*Lifetable!$E18 -> 0 | AA19: =Z18*Lifetable!$E18 -> 0 | AB19: =AA18*Lifetable!$E18 -> 0 | AC19: =AB18*Lifetable!$E18 -> 0 | AD19: =AC18*Lifetable!$E18 -> 0 | AE19: =AD18*Lifetable!$E18 -> 0 | AF19: =AE18*Lifetable!$E18 -> 0 | AG19: =AF18*Lifetable!$E18 -> 0 | AH19: =AG18*Lifetable!$E18 -> 0 | AI19: =AH18*Lifetable!$E18 -> 0 | AJ19: =AI18*Lifetable!$E18 -> 0 | AK19: =AJ18*Lifetable!$E18 -> 0 | AL19: =AK18*Lifetable!$E18 -> 0 | AM19: =AL18*Lifetable!$E18 -> 0 | AN19: =AM18*Lifetable!$E18 -> 0 | AO19: =AN18*Lifetable!$E18 -> 0 | AP19: =AO18*Lifetable!$E18 -> 0 | AQ19: =AP18*Lifetable!$E18 -> 0 | AR19: =AQ18*Lifetable!$E18 -> 0 | AS19: =AR18*Lifetable!$E18 -> 0 | AT19: =AS18*Lifetable!$E18 -> 0 | AU19: =AT18*Lifetable!$E18 -> 0 | AV19: =AU18*Lifetable!$E18 -> 0 | AW19: =AV18*Lifetable!$E18 -> 0 | AX19: =AW18*Lifetable!$E18 -> 0 | AY19: =AX18*Lifetable!$E18 -> 0 | AZ19: =AY18*Lifetable!$E18 -> 0 | BA19: =AZ18*Lifetable!$E18 -> 0 | BB19: =BA18*Lifetable!$E18 -> 0 | BD19: =Lifetable!$E19*Lifetable!$G20 -> 0 | BE19: 0 | BF19: 0 | BG19: 0 | BH19: 0 | BI19: 0 | BJ19: 0 | BK19: 0 | BL19: 0 | BM19: 0 | BN19: 0 | BO19: 0 | BP19: 0 | BQ19: 0 | BR19: 0 | BS19: 0 | BT19: 0 | BU19: 0 | BV19: 0 | BW19: 0 | BX19: 0 | BY19: 0 | BZ19: 0 | CA19: 0 | CB19: 0 | CC19: 0 | CD19: 0 | CE19: 0 | CF19: 0 | CG19: 0 | CH19: 0 | CI19: 0 | CJ19: 0 | CK19: 0 | CL19: 0 | CM19: 0 | CN19: 0 | CO19: 0 | CP19: 0 | CQ19: 0 | CR19: 0 | CS19: 0 | CT19: 0 | CU19: 0 | CV19: 0 | CW19: 0 | CX19: 0 | CY19: 0 | CZ19: 0 | DA19: 0 | DB19: 0 | DC19: 0 | DD19: 0
A20: =IF(Lifetable!A20 = "", "", VALUE(Lifetable!A20)) ->  | C20: =B19*Lifetable!$E19 -> 0 | D20: =C19*Lifetable!$E19 -> 0 | E20: =D19*Lifetable!$E19 -> 0 | F20: =E19*Lifetable!$E19 -> 0 | G20: =F19*Lifetable!$E19 -> 0 | H20: =G19*Lifetable!$E19 -> 0 | I20: =H19*Lifetable!$E19 -> 0 | J20: =I19*Lifetable!$E19 -> 0 | K20: =J19*Lifetable!$E19 -> 0 | L20: =K19*Lifetable!$E19 -> 0 | M20: =L19*Lifetable!$E19 -> 0 | N20: =M19*Lifetable!$E19 -> 0 | O20: =N19*Lifetable!$E19 -> 0 | P20: =O19*Lifetable!$E19 -> 0 | Q20: =P19*Lifetable!$E19 -> 0 | R20: =Q19*Lifetable!$E19 -> 0 | S20: =R19*Lifetable!$E19 -> 0 | T20: =S19*Lifetable!$E19 -> 0 | U20: =T19*Lifetable!$E19 -> 0 | V20: =U19*Lifetable!$E19 -> 0 | W20: =V19*Lifetable!$E19 -> 0 | X20: =W19*Lifetable!$E19 -> 0 | Y20: =X19*Lifetable!$E19 -> 0 | Z20: =Y19*Lifetable!$E19 -> 0 | AA20: =Z19*Lifetable!$E19 -> 0 | AB20: =AA19*Lifetable!$E19 -> 0 | AC20: =AB19*Lifetable!$E19 -> 0 | AD20: =AC19*Lifetable!$E19 -> 0 | AE20: =AD19*Lifetable!$E19 -> 0 | AF20: =AE19*Lifetable!$E19 -> 0 | AG20: =AF19*Lifetable!$E19 -> 0 | AH20: =AG19*Lifetable!$E19 -> 0 | AI20: =AH19*Lifetable!$E19 -> 0 | AJ20: =AI19*Lifetable!$E19 -> 0 | AK20: =AJ19*Lifetable!$E19 -> 0 | AL20: =AK19*Lifetable!$E19 -> 0 | AM20: =AL19*Lifetable!$E19 -> 0 | AN20: =AM19*Lifetable!$E19 -> 0 | AO20: =AN19*Lifetable!$E19 -> 0 | AP20: =AO19*Lifetable!$E19 -> 0 | AQ20: =AP19*Lifetable!$E19 -> 0 | AR20: =AQ19*Lifetable!$E19 -> 0 | AS20: =AR19*Lifetable!$E19 -> 0 | AT20: =AS19*Lifetable!$E19 -> 0 | AU20: =AT19*Lifetable!$E19 -> 0 | AV20: =AU19*Lifetable!$E19 -> 0 | AW20: =AV19*Lifetable!$E19 -> 0 | AX20: =AW19*Lifetable!$E19 -> 0 | AY20: =AX19*Lifetable!$E19 -> 0 | AZ20: =AY19*Lifetable!$E19 -> 0 | BA20: =AZ19*Lifetable!$E19 -> 0 | BB20: =BA19*Lifetable!$E19 -> 0 | BD20: =Lifetable!$E20*Lifetable!$G21 -> 0 | BE20: 0 | BF20: 0 | BG20: 0 | BH20: 0 | BI20: 0 | BJ20: 0 | BK20: 0 | BL20: 0 | BM20: 0 | BN20: 0 | BO20: 0 | BP20: 0 | BQ20: 0 | BR20: 0 | BS20: 0 | BT20: 0 | BU20: 0 | BV20: 0 | BW20: 0 | BX20: 0 | BY20: 0 | BZ20: 0 | CA20: 0 | CB20: 0 | CC20: 0 | CD20: 0 | CE20: 0 | CF20: 0 | CG20: 0 | CH20: 0 | CI20: 0 | CJ20: 0 | CK20: 0 | CL20: 0 | CM20: 0 | CN20: 0 | CO20: 0 | CP20: 0 | CQ20: 0 | CR20: 0 | CS20: 0 | CT20: 0 | CU20: 0 | CV20: 0 | CW20: 0 | CX20: 0 | CY20: 0 | CZ20: 0 | DA20: 0 | DB20: 0 | DC20: 0 | DD20: 0
A21: =IF(Lifetable!A21 = "", "", VALUE(Lifetable!A21)) ->  | C21: =B20*Lifetable!$E20 -> 0 | D21: =C20*Lifetable!$E20 -> 0 | E21: =D20*Lifetable!$E20 -> 0 | F21: =E20*Lifetable!$E20 -> 0 | G21: =F20*Lifetable!$E20 -> 0 | H21: =G20*Lifetable!$E20 -> 0 | I21: =H20*Lifetable!$E20 -> 0 | J21: =I20*Lifetable!$E20 -> 0 | K21: =J20*Lifetable!$E20 -> 0 | L21: =K20*Lifetable!$E20 -> 0 | M21: =L20*Lifetable!$E20 -> 0 | N21: =M20*Lifetable!$E20 -> 0 | O21: =N20*Lifetable!$E20 -> 0 | P21: =O20*Lifetable!$E20 -> 0 | Q21: =P20*Lifetable!$E20 -> 0 | R21: =Q20*Lifetable!$E20 -> 0 | S21: =R20*Lifetable!$E20 -> 0 | T21: =S20*Lifetable!$E20 -> 0 | U21: =T20*Lifetable!$E20 -> 0 | V21: =U20*Lifetable!$E20 -> 0 | W21: =V20*Lifetable!$E20 -> 0 | X21: =W20*Lifetable!$E20 -> 0 | Y21: =X20*Lifetable!$E20 -> 0 | Z21: =Y20*Lifetable!$E20 -> 0 | AA21: =Z20*Lifetable!$E20 -> 0 | AB21: =AA20*Lifetable!$E20 -> 0 | AC21: =AB20*Lifetable!$E20 -> 0 | AD21: =AC20*Lifetable!$E20 -> 0 | AE21: =AD20*Lifetable!$E20 -> 0 | AF21: =AE20*Lifetable!$E20 -> 0 | AG21: =AF20*Lifetable!$E20 -> 0 | AH21: =AG20*Lifetable!$E20 -> 0 | AI21: =AH20*Lifetable!$E20 -> 0 | AJ21: =AI20*Lifetable!$E20 -> 0 | AK21: =AJ20*Lifetable!$E20 -> 0 | AL21: =AK20*Lifetable!$E20 -> 0 | AM21: =AL20*Lifetable!$E20 -> 0 | AN21: =AM20*Lifetable!$E20 -> 0 | AO21: =AN20*Lifetable!$E20 -> 0 | AP21: =AO20*Lifetable!$E20 -> 0 | AQ21: =AP20*Lifetable!$E20 -> 0 | AR21: =AQ20*Lifetable!$E20 -> 0 | AS21: =AR20*Lifetable!$E20 -> 0 | AT21: =AS20*Lifetable!$E20 -> 0 | AU21: =AT20*Lifetable!$E20 -> 0 | AV21: =AU20*Lifetable!$E20 -> 0 | AW21: =AV20*Lifetable!$E20 -> 0 | AX21: =AW20*Lifetable!$E20 -> 0 | AY21: =AX20*Lifetable!$E20 -> 0 | AZ21: =AY20*Lifetable!$E20 -> 0 | BA21: =AZ20*Lifetable!$E20 -> 0 | BB21: =BA20*Lifetable!$E20 -> 0 | BD21: =Lifetable!$E21*Lifetable!$G22 -> 0 | BE21: 0 | BF21: 0 | BG21: 0 | BH21: 0 | BI21: 0 | BJ21: 0 | BK21: 0 | BL21: 0 | BM21: 0 | BN21: 0 | BO21: 0 | BP21: 0 | BQ21: 0 | BR21: 0 | BS21: 0 | BT21: 0 | BU21: 0 | BV21: 0 | BW21: 0 | BX21: 0 | BY21: 0 | BZ21: 0 | CA21: 0 | CB21: 0 | CC21: 0 | CD21: 0 | CE21: 0 | CF21: 0 | CG21: 0 | CH21: 0 | CI21: 0 | CJ21: 0 | CK21: 0 | CL21: 0 | CM21: 0 | CN21: 0 | CO21: 0 | CP21: 0 | CQ21: 0 | CR21: 0 | CS21: 0 | CT21: 0 | CU21: 0 | CV21: 0 | CW21: 0 | CX21: 0 | CY21: 0 | CZ21: 0 | DA21: 0 | DB21: 0 | DC21: 0 | DD21: 0
A22: =IF(Lifetable!A22 = "", "", VALUE(Lifetable!A22)) ->  | C22: =B21*Lifetable!$E21 -> 0 | D22: =C21*Lifetable!$E21 -> 0 | E22: =D21*Lifetable!$E21 -> 0 | F22: =E21*Lifetable!$E21 -> 0 | G22: =F21*Lifetable!$E21 -> 0 | H22: =G21*Lifetable!$E21 -> 0 | I22: =H21*Lifetable!$E21 -> 0 | J22: =I21*Lifetable!$E21 -> 0 | K22: =J21*Lifetable!$E21 -> 0 | L22: =K21*Lifetable!$E21 -> 0 | M22: =L21*Lifetable!$E21 -> 0 | N22: =M21*Lifetable!$E21 -> 0 | O22: =N21*Lifetable!$E21 -> 0 | P22: =O21*Lifetable!$E21 -> 0 | Q22: =P21*Lifetable!$E21 -> 0 | R22: =Q21*Lifetable!$E21 -> 0 | S22: =R21*Lifetable!$E21 -> 0 | T22: =S21*Lifetable!$E21 -> 0 | U22: =T21*Lifetable!$E21 -> 0 | V22: =U21*Lifetable!$E21 -> 0 | W22: =V21*Lifetable!$E21 -> 0 | X22: =W21*Lifetable!$E21 -> 0 | Y22: =X21*Lifetable!$E21 -> 0 | Z22: =Y21*Lifetable!$E21 -> 0 | AA22: =Z21*Lifetable!$E21 -> 0 | AB22: =AA21*Lifetable!$E21 -> 0 | AC22: =AB21*Lifetable!$E21 -> 0 | AD22: =AC21*Lifetable!$E21 -> 0 | AE22: =AD21*Lifetable!$E21 -> 0 | AF22: =AE21*Lifetable!$E21 -> 0 | AG22: =AF21*Lifetable!$E21 -> 0 | AH22: =AG21*Lifetable!$E21 -> 0 | AI22: =AH21*Lifetable!$E21 -> 0 | AJ22: =AI21*Lifetable!$E21 -> 0 | AK22: =AJ21*Lifetable!$E21 -> 0 | AL22: =AK21*Lifetable!$E21 -> 0 | AM22: =AL21*Lifetable!$E21 -> 0 | AN22: =AM21*Lifetable!$E21 -> 0 | AO22: =AN21*Lifetable!$E21 -> 0 | AP22: =AO21*Lifetable!$E21 -> 0 | AQ22: =AP21*Lifetable!$E21 -> 0 | AR22: =AQ21*Lifetable!$E21 -> 0 | AS22: =AR21*Lifetable!$E21 -> 0 | AT22: =AS21*Lifetable!$E21 -> 0 | AU22: =AT21*Lifetable!$E21 -> 0 | AV22: =AU21*Lifetable!$E21 -> 0 | AW22: =AV21*Lifetable!$E21 -> 0 | AX22: =AW21*Lifetable!$E21 -> 0 | AY22: =AX21*Lifetable!$E21 -> 0 | AZ22: =AY21*Lifetable!$E21 -> 0 | BA22: =AZ21*Lifetable!$E21 -> 0 | BB22: =BA21*Lifetable!$E21 -> 0 | BD22: =Lifetable!$E22*Lifetable!$G23 -> 0 | BE22: 0 | BF22: 0 | BG22: 0 | BH22: 0 | BI22: 0 | BJ22: 0 | BK22: 0 | BL22: 0 | BM22: 0 | BN22: 0 | BO22: 0 | BP22: 0 | BQ22: 0 | BR22: 0 | BS22: 0 | BT22: 0 | BU22: 0 | BV22: 0 | BW22: 0 | BX22: 0 | BY22: 0 | BZ22: 0 | CA22: 0 | CB22: 0 | CC22: 0 | CD22: 0 | CE22: 0 | CF22: 0 | CG22: 0 | CH22: 0 | CI22: 0 | CJ22: 0 | CK22: 0 | CL22: 0 | CM22: 0 | CN22: 0 | CO22: 0 | CP22: 0 | CQ22: 0 | CR22: 0 | CS22: 0 | CT22: 0 | CU22: 0 | CV22: 0 | CW22: 0 | CX22: 0 | CY22: 0 | CZ22: 0 | DA22: 0 | DB22: 0 | DC22: 0 | DD22: 0
B23: =SUM(B2:B21) -> 42 | C23: =SUM(C2:C21) -> 54.2575 | D23: 60.968625 | E23: 75.5775 | F23: 94.63725 | G23: 119.625597 | H23: 150.9097621 | I23: 188.2861772 | J23: 237.1947142 | K23: 297.6878959 | L23: 373.9371483 | M23: 469.6238545 | N23: 589.7686643 | O23: 740.7848573 | P23: 930.3170315 | Q23: 1168.442504 | R23: 1467.47291 | S23: 1843.046698 | T23: 2314.743036 | U23: 2907.152682 | V23: 3651.188187 | W23: 4585.638286 | X23: 5759.247284 | Y23: 7233.217839 | Z23: 9084.423536 | AA23: 11409.41101 | AB23: 14329.43452 | AC23: 17996.78365 | AD23: 22602.72135 | AE23: 28387.46222 | AF23: 35652.69853 | AG23: 44777.33521 | AH23: 56237.25084 | AI23: 70630.116 | AJ23: 88706.56395 | AK23: 111409.3383 | AL23: 139922.4601 | AM23: 175732.9785 | AN23: 220708.5246 | AO23: 277194.7146 | AP23: 348137.4811 | AQ23: 437236.7126 | AR23: 549139.2142 | AS23: 689681.0536 | AT23: 866191.9298 | AU23: 1087877.44 | AV23: 1366299.182 | AW23: 1715977.725 | AX23: 2155149.905 | AY23: 2706719.932 | AZ23: 3399453.921 | BA23: 4269480.126 | BB23: 5362173.153
C24: =C23/B23 -> 1.291845238 | D24: 1.123690273 | E24: 1.239612998 | F24: 1.252188151 | G24: 1.264043461 | H24: 1.261517317 | I24: 1.247673938 | J24: 1.259756386 | K24: 1.25503596 | L24: 1.256138235 | M24: 1.255889811 | N24: 1.255832 | O24: 1.256060049 | P24: 1.255853197 | Q24: 1.255961639 | R24: 1.255922225 | S24: 1.255932349 | T24: 1.255932928 | U24: 1.255928903 | V24: 1.255932724 | W24: 1.255930412 | X24: 1.255931438 | Y24: 1.255931111 | Z24: 1.255931141 | AA24: 1.255931207 | AB24: 1.255931135 | AC24: 1.255931183 | AD24: 1.255931159 | AE24: 1.255931168 | AF24: 1.255931166 | AG24: 1.255931165 | AH24: 1.255931167 | AI24: =AI23/AH23 -> 1.255931166 | AJ24: 1.255931166 | AK24: 1.255931166 | AL24: 1.255931166 | AM24: 1.255931166 | AN24: 1.255931166 | AO24: 1.255931166 | AP24: 1.255931166 | AQ24: 1.255931166 | AR24: 1.255931166 | AS24: 1.255931166 | AT24: 1.255931166 | AU24: 1.255931166 | AV24: 1.255931166 | AW24: 1.255931166 | AX24: 1.255931166 | AY24: 1.255931166 | AZ24: 1.255931166 | BA24: 1.255931166 | BB24: 1.255931166 | BE24: =SUM(BE2:BE23) -> 25.4075 | BF24: =SUM(BF2:BF23) -> 22.728 | BG24: =SUM(BG2:BG23) -> 31.767 | BH24: 39.2196 | BI24: 49.294557 | BJ24: 62.4034944 | BK24: 77.55425424 | BL24: 98.08842355 | BM24: 122.8297799 | BN24: 154.397439 | BO24: 193.8933035 | BP24: 243.4803307 | BQ24: 305.8532195 | BR24: 384.0776944 | BS24: 482.4086147 | BT24: 605.8565729 | BU24: 760.9181881 | BV24: 955.662767 | BW24: 1200.242452 | BX24: 1507.42604 | BY24: 1893.220425 | BZ24: 2377.756094 | CA24: 2986.297433 | CB24: 3750.583985 | CC24: 4710.4756 | CD24: 5916.032793 | CE24: 7430.130211 | CF24: 9331.731952 | CG24: 11720.01305 | CH24: 14719.52965 | CI24: 18486.71602 | CJ24: 23218.04283 | CK24: 29160.26358 | CL24: 36623.28385 | CM24: 45996.32358 | CN24: 57768.21631 | CO24: 72552.90327 | CP24: 91121.45239 | CQ24: 114442.2719 | CR24: 143731.616 | CS24: 180517.0161 | CT24: 226716.9465 | CU24: 284740.879 | CV24: 357614.9442 | CW24: 449139.7538 | CX24: 564088.6146 | CY24: 708456.4715 | CZ24: 889772.5623 | DA24: 1117493.092 | DB24: 1403494.401 | DC24: 1762692.36 | DD24: 2213820.271
B26: years
B27: =VALUE(MID(B1,2,2)) -> 0 | C27: 1 | D27: 2 | E27: 3 | F27: 4 | G27: 5 | H27: 6 | I27: 7 | J27: 8 | K27: 9 | L27: 10 | M27: 11 | N27: 12 | O27: 13 | P27: 14 | Q27: 15 | R27: 16 | S27: 17 | T27: 18 | U27: 19 | V27: 20 | W27: 21 | X27: 22 | Y27: 23 | Z27: 24 | AA27: 25 | AB27: 26 | AC27: 27 | AD27: 28 | AE27: 29 | AF27: 30 | AG27: 31 | AH27: =VALUE(MID(AH1,2,2)) -> 32 | AI27: 33 | AJ27: 34 | AK27: 35 | AL27: 36 | AM27: 37 | AN27: 38 | AO27: 39 | AP27: 40 | AQ27: 41 | AR27: 42 | AS27: 43 | AT27: 44 | AU27: 45 | AV27: 46 | AW27: 47 | AX27: 48 | AY27: 49 | AZ27: 50 | BA27: 51 | BB27: 52

Sheet Ageclass
A1: X | B1: y0 | C1: y1 | D1: y2 | E1: y3 | F1: y4 | G1: y5 | H1: y6 | I1: y7 | J1: y8 | K1: y9 | L1: y10 | M1: y11 | N1: y12 | O1: y13 | P1: y14 | Q1: y15 | R1: y16 | S1: y17 | T1: y18 | U1: y19 | V1: y20 | W1: y21 | X1: y22 | Y1: y23 | Z1: y24 | AA1: y25 | AB1: y26 | AC1: y27 | AD1: y28 | AE1: y29 | AF1: y30 | AG1: y31 | AH1: y32 | AI1: y33 | AJ1: y34 | AK1: y35 | AL1: y36 | AM1: y37 | AN1: y38 | AO1: y39 | AP1: y40 | AQ1: y41 | AR1: y42 | AS1: y43 | AT1: y44 | AU1: y45 | AV1: y46 | AW1: y47 | AX1: y48 | AY1: y49 | AZ1: y50 | BA1: y51 | BB1: y52 | BD1: stable | BE1: proportion
A2: =IF(Lifetable!A2 = "", "", "X"&Lifetable!A2) -> X0 | B2: =Population!B2/Population!B$23 -> 0.2380952381 | C2: =Population!C2/Population!C$23 -> 0.4682762752 | D2: =Population!D2/Population!D$23 -> 0.3727819022 | E2: =Population!E2/Population!E$23 -> 0.420323509 | F2: =Population!F2/Population!F$23 -> 0.414420326 | G2: =Population!G2/Population!G$23 -> 0.4120736551 | H2: =Population!H2/Population!H$23 -> 0.4135152923 | I2: =Population!I2/Population!I$23 -> 0.4118956334 | J2: =Population!J2/Population!J$23 -> 0.4135354528 | K2: =Population!K2/Population!K$23 -> 0.4126126107 | L2: =Population!L2/Population!L$23 -> 0.4128967653 | M2: =Population!M2/Population!M$23 -> 0.4128693669 | N2: =Population!N2/Population!N$23 -> 0.4128403991 | O2: =Population!O2/Population!O$23 -> 0.4128772564 | P2: =Population!P2/Population!P$23 -> 0.4128460314 | Q2: =Population!Q2/Population!Q$23 -> 0.4128646578 | R2: =Population!R2/Population!R$23 -> 0.4128570749 | S2: =Population!S2/Population!S$23 -> 0.4128588759 | T2: =Population!T2/Population!T$23 -> 0.4128591174 | U2: =Population!U2/Population!U$23 -> 0.4128584164 | V2: =Population!V2/Population!V$23 -> 0.4128590375 | W2: =Population!W2/Population!W$23 -> 0.4128586485 | X2: =Population!X2/Population!X$23 -> 0.4128588298 | Y2: =Population!Y2/Population!Y$23 -> 0.4128587718 | Z2: =Population!Z2/Population!Z$23 -> 0.4128587764 | AA2: =Population!AA2/Population!AA$23 -> 0.4128587878 | AB2: =Population!AB2/Population!AB$23 -> 0.4128587757 | AC2: =Population!AC2/Population!AC$23 -> 0.4128587838 | AD2: =Population!AD2/Population!AD$23 -> 0.4128587797 | AE2: =Population!AE2/Population!AE$23 -> 0.4128587812 | AF2: =Population!AF2/Population!AF$23 -> 0.4128587809 | AG2: =Population!AG2/Population!AG$23 -> 0.4128587808 | AH2: =Population!AH2/Population!AH$23 -> 0.412858781 | AI2: =Population!AI2/Population!AI$23 -> 0.4128587808 | AJ2: =Population!AJ2/Population!AJ$23 -> 0.4128587809 | AK2: =Population!AK2/Population!AK$23 -> 0.4128587809 | AL2: =Population!AL2/Population!AL$23 -> 0.4128587809 | AM2: =Population!AM2/Population!AM$23 -> 0.4128587809 | AN2: =Population!AN2/Population!AN$23 -> 0.4128587809 | AO2: =Population!AO2/Population!AO$23 -> 0.4128587809 | AP2: =Population!AP2/Population!AP$23 -> 0.4128587809 | AQ2: =Population!AQ2/Population!AQ$23 -> 0.4128587809 | AR2: =Population!AR2/Population!AR$23 -> 0.4128587809 | AS2: =Population!AS2/Population!AS$23 -> 0.4128587809 | AT2: =Population!AT2/Population!AT$23 -> 0.4128587809 | AU2: =Population!AU2/Population!AU$23 -> 0.4128587809 | AV2: =Population!AV2/Population!AV$23 -> 0.4128587809 | AW2: =Population!AW2/Population!AW$23 -> 0.4128587809 | AX2: =Population!AX2/Population!AX$23 -> 0.4128587809 | AY2: =Population!AY2/Population!AY$23 -> 0.4128587809 | AZ2: =Population!AZ2/Population!AZ$23 -> 0.4128587809 | BA2: =Population!BA2/Population!BA$23 -> 0.4128587809 | BB2: =Population!BB2/Population!BB$23 -> 0.4128587809 | BD2: =EXP(-r_est*Lifetable!A2)*Lifetable!F2 -> 1 | BE2: =BD2/BD$23 -> 0.4090302955
A3: =IF(Lifetable!A3 = "", "", "X"&Lifetable!A3) -> X1 | B3: =Population!B3/Population!B$23 -> 0.2142857143 | C3: =Population!C3/Population!C$23 -> 0.1382297378 | D3: =Population!D3/Population!D$23 -> 0.3125480524 | E3: =Population!E3/Population!E$23 -> 0.2255433165 | F3: =Population!F3/Population!F$23 -> 0.2517534058 | G3: =Population!G3/Population!G$23 -> 0.245889682 | H3: =Population!H3/Population!H$23 -> 0.2449869195 | I3: =Population!I3/Population!I$23 -> 0.2485717299 | J3: =Population!J3/Population!J$23 -> 0.2452233848 | K3: =Population!K3/Population!K$23 -> 0.2471256597 | L3: =Population!L3/Population!L$23 -> 0.2463578046 | M3: =Population!M3/Population!M$23 -> 0.2465762293 | N3: =Population!N3/Population!N$23 -> 0.2465712175 | O3: =Population!O3/Population!O$23 -> 0.2465091534 | P3: =Population!P3/Population!P$23 -> 0.2465717673 | Q3: =Population!Q3/Population!Q$23 -> 0.2465318317 | R3: =Population!R3/Population!R$23 -> 0.2465506918 | S3: =Population!S3/Population!S$23 -> 0.2465441761 | T3: =Population!T3/Population!T$23 -> 0.2465451379 | U3: =Population!U3/Population!U$23 -> 0.2465460723 | V3: =Population!V3/Population!V$23 -> 0.2465449035 | W3: =Population!W3/Population!W$23 -> 0.2465457282 | X3: =Population!X3/Population!X$23 -> 0.2465452947 | Y3: =Population!Y3/Population!Y$23 -> 0.2465454671 | Z3: =Population!Z3/Population!Z$23 -> 0.2465454264 | AA3: =Population!AA3/Population!AA$23 -> 0.2465454163 | AB3: =Population!AB3/Population!AB$23 -> 0.2465454373 | AC3: =Population!AC3/Population!AC$23 -> 0.2465454206 | AD3: =Population!AD3/Population!AD$23 -> 0.2465454302 | AE3: =Population!AE3/Population!AE$23 -> 0.2465454259 | AF3: =Population!AF3/Population!AF$23 -> 0.2465454272 | AG3: =Population!AG3/Population!AG$23 -> 0.2465454272 | AH3: =Population!AH3/Population!AH$23 -> 0.2465454269 | AI3: =Population!AI3/Population!AI$23 -> 0.2465454272 | AJ3: =Population!AJ3/Population!AJ$23 -> 0.246545427 | AK3: =Population!AK3/Population!AK$23 -> 0.2465454271 | AL3: =Population!AL3/Population!AL$23 -> 0.2465454271 | AM3: =Population!AM3/Population!AM$23 -> 0.2465454271 | AN3: =Population!AN3/Population!AN$23 -> 0.2465454271 | AO3: =Population!AO3/Population!AO$23 -> 0.2465454271 | AP3: =Population!AP3/Population!AP$23 -> 0.2465454271 | AQ3: =Population!AQ3/Population!AQ$23 -> 0.2465454271 | AR3: =Population!AR3/Population!AR$23 -> 0.2465454271 | AS3: =Population!AS3/Population!AS$23 -> 0.2465454271 | AT3: =Population!AT3/Population!AT$23 -> 0.2465454271 | AU3: =Population!AU3/Population!AU$23 -> 0.2465454271 | AV3: =Population!AV3/Population!AV$23 -> 0.2465454271 | AW3: =Population!AW3/Population!AW$23 -> 0.2465454271 | AX3: =Population!AX3/Population!AX$23 -> 0.2465454271 | AY3: =Population!AY3/Population!AY$23 -> 0.2465454271 | AZ3: =Population!AZ3/Population!AZ$23 -> 0.2465454271 | BA3: =Population!BA3/Population!BA$23 -> 0.2465454271 | BB3: =Population!BB3/Population!BB$23 -> 0.2465454271 | BD3: =EXP(-r_est*Lifetable!A3)*Lifetable!F3 -> 0.6017231026 | BE3: 0.2461229784
A4: =IF(Lifetable!A4 = "", "", "X"&Lifetable!A4) -> X2 | B4: =Population!B4/Population!B$23 -> 0.1904761905 | C4: =Population!C4/Population!C$23 -> 0.1327005483 | D4: =Population!D4/Population!D$23 -> 0.09841127301 | E4: =Population!E4/Population!E$23 -> 0.2017068572 | F4: =Population!F4/Population!F$23 -> 0.1440954804 | G4: =Population!G4/Population!G$23 -> 0.1593321202 | H4: =Population!H4/Population!H$23 -> 0.1559326558 | I4: =Population!I4/Population!I$23 -> 0.157083938 | J4: =Population!J4/Population!J$23 -> 0.1578538407 | K4: =Population!K4/Population!K$23 -> 0.1563132166 | L4: =Population!L4/Population!L$23 -> 0.1573875567 | M4: =Population!M4/Population!M$23 -> 0.1569295666 | N4: =Population!N4/Population!N$23 -> 0.1570759333 | O4: =Population!O4/Population!O$23 -> 0.1570442227 | P4: =Population!P4/Population!P$23 -> 0.1570305536 | Q4: =Population!Q4/Population!Q$23 -> 0.1570568779 | R4: =Population!R4/Population!R$23 -> 0.1570363685 | S4: =Population!S4/Population!S$23 -> 0.1570471161 | T4: =Population!T4/Population!T$23 -> 0.1570428933 | U4: =Population!U4/Population!U$23 -> 0.1570440093 | V4: =Population!V4/Population!V$23 -> 0.1570441267 | W4: =Population!W4/Population!W$23 -> 0.1570436712 | X4: =Population!X4/Population!X$23 -> 0.1570440684 | Y4: =Population!Y4/Population!Y$23 -> 0.1570438331 | Z4: =Population!Z4/Population!Z$23 -> 0.1570439391 | AA4: =Population!AA4/Population!AA$23 -> 0.157043905 | AB4: =Population!AB4/Population!AB$23 -> 0.1570439076 | AC4: =Population!AC4/Population!AC$23 -> 0.1570439149 | AD4: =Population!AD4/Population!AD$23 -> 0.1570439073 | AE4: =Population!AE4/Population!AE$23 -> 0.1570439123 | AF4: =Population!AF4/Population!AF$23 -> 0.1570439098 | AG4: =Population!AG4/Population!AG$23 -> 0.1570439107 | AH4: =Population!AH4/Population!AH$23 -> 0.1570439105 | AI4: =Population!AI4/Population!AI$23 -> 0.1570439104 | AJ4: =Population!AJ4/Population!AJ$23 -> 0.1570439106 | AK4: =Population!AK4/Population!AK$23 -> 0.1570439105 | AL4: =Population!AL4/Population!AL$23 -> 0.1570439105 | AM4: =Population!AM4/Population!AM$23 -> 0.1570439105 | AN4: =Population!AN4/Population!AN$23 -> 0.1570439105 | AO4: =Population!AO4/Population!AO$23 -> 0.1570439105 | AP4: =Population!AP4/Population!AP$23 -> 0.1570439105 | AQ4: =Population!AQ4/Population!AQ$23 -> 0.1570439105 | AR4: =Population!AR4/Population!AR$23 -> 0.1570439105 | AS4: =Population!AS4/Population!AS$23 -> 0.1570439105 | AT4: =Population!AT4/Population!AT$23 -> 0.1570439105 | AU4: =Population!AU4/Population!AU$23 -> 0.1570439105 | AV4: =Population!AV4/Population!AV$23 -> 0.1570439105 | AW4: =Population!AW4/Population!AW$23 -> 0.1570439105 | AX4: =Population!AX4/Population!AX$23 -> 0.1570439105 | AY4: =Population!AY4/Population!AY$23 -> 0.1570439105 | AZ4: =Population!AZ4/Population!AZ$23 -> 0.1570439105 | BA4: =Population!BA4/Population!BA$23 -> 0.1570439105 | BB4: =Population!BB4/Population!BB$23 -> 0.1570439105 | BD4: =EXP(-r_est*Lifetable!A4)*Lifetable!F4 -> 0.3862087383 | BE4: 0.1579710743
A5: =IF(Lifetable!A5 = "", "", "X"&Lifetable!A5) -> X3 | B5: =Population!B5/Population!B$23 -> 0.1666666667 | C5: =Population!C5/Population!C$23 -> 0.1179560429 | D5: =Population!D5/Population!D$23 -> 0.09447482209 | E5: =Population!E5/Population!E$23 -> 0.06351096557 | F5: =Population!F5/Population!F$23 -> 0.1288668046 | G5: =Population!G5/Population!G$23 -> 0.09119653547 | H5: =Population!H5/Population!H$23 -> 0.1010415747 | I5: =Population!I5/Population!I$23 -> 0.09998295295 | J5: =Population!J5/Population!J$23 -> 0.09975512075 | K5: =Population!K5/Population!K$23 -> 0.1006210791 | L5: =Population!L5/Population!L$23 -> 0.09955160166 | M5: =Population!M5/Population!M$23 -> 0.1002556468 | N5: =Population!N5/Population!N$23 -> 0.09996850955 | O5: =Population!O5/Population!O$23 -> 0.1000435821 | P5: =Population!P5/Population!P$23 -> 0.1000398601 | Q5: =Population!Q5/Population!Q$23 -> 0.1000225157 | R5: =Population!R5/Population!R$23 -> 0.1000424229 | S5: =Population!S5/Population!S$23 -> 0.1000285524 | T5: =Population!T5/Population!T$23 -> 0.1000353523 | U5: =Population!U5/Population!U$23 -> 0.1000329831 | V5: =Population!V5/Population!V$23 -> 0.1000333896 | W5: =Population!W5/Population!W$23 -> 0.1000336484 | X5: =Population!X5/Population!X$23 -> 0.1000332767 | Y5: =Population!Y5/Population!Y$23 -> 0.1000335557 | Z5: =Population!Z5/Population!Z$23 -> 0.1000334034 | AA5: =Population!AA5/Population!AA$23 -> 0.1000334657 | AB5: =Population!AB5/Population!AB$23 -> 0.1000334497 | AC5: =Population!AC5/Population!AC$23 -> 0.1000334475 | AD5: =Population!AD5/Population!AD$23 -> 0.1000334541 | AE5: =Population!AE5/Population!AE$23 -> 0.1000334485 | AF5: =Population!AF5/Population!AF$23 -> 0.1000334518 | AG5: =Population!AG5/Population!AG$23 -> 0.1000334503 | AH5: =Population!AH5/Population!AH$23 -> 0.1000334508 | AI5: =Population!AI5/Population!AI$23 -> 0.1000334508 | AJ5: =Population!AJ5/Population!AJ$23 -> 0.1000334507 | AK5: =Population!AK5/Population!AK$23 -> 0.1000334508 | AL5: =Population!AL5/Population!AL$23 -> 0.1000334507 | AM5: =Population!AM5/Population!AM$23 -> 0.1000334507 | AN5: =Population!AN5/Population!AN$23 -> 0.1000334507 | AO5: =Population!AO5/Population!AO$23 -> 0.1000334507 | AP5: =Population!AP5/Population!AP$23 -> 0.1000334507 | AQ5: =Population!AQ5/Population!AQ$23 -> 0.1000334507 | AR5: =Population!AR5/Population!AR$23 -> 0.1000334507 | AS5: =Population!AS5/Population!AS$23 -> 0.1000334507 | AT5: =Population!AT5/Population!AT$23 -> 0.1000334507 | AU5: =Population!AU5/Population!AU$23 -> 0.1000334507 | AV5: =Population!AV5/Population!AV$23 -> 0.1000334507 | AW5: =Population!AW5/Population!AW$23 -> 0.1000334507 | AX5: =Population!AX5/Population!AX$23 -> 0.1000334507 | AY5: =Population!AY5/Population!AY$23 -> 0.1000334507 | AZ5: =Population!AZ5/Population!AZ$23 -> 0.1000334507 | BA5: =Population!BA5/Population!BA$23 -> 0.1000334507 | BB5: =Population!BB5/Population!BB$23 -> 0.1000334507 | BD5: =EXP(-r_est*Lifetable!A5)*Lifetable!F5 -> 0.2478834349 | BE5: 0.1013918346
A6: =IF(Lifetable!A6 = "", "", "X"&Lifetable!A6) -> X4 | B6: =Population!B6/Population!B$23 -> 0.119047619 | C6: =Population!C6/Population!C$23 -> 0.09676081648 | D6: =Population!D6/Population!D$23 -> 0.07872901841 | E6: =Population!E6/Population!E$23 -> 0.05715986901 | F6: =Population!F6/Population!F$23 -> 0.03803998954 | G6: =Population!G6/Population!G$23 -> 0.07646106042 | H6: =Population!H6/Population!H$23 -> 0.05421836125 | I6: =Population!I6/Population!I$23 -> 0.06073796902 | J6: =Population!J6/Population!J$23 -> 0.05952517132 | K6: =Population!K6/Population!K$23 -> 0.05961290587 | L6: =Population!L6/Population!L$23 -> 0.06007763092 | M6: =Population!M6/Population!M$23 -> 0.05945083765 | N6: =Population!N6/Population!N$23 -> 0.0598740398 | O6: =Population!O6/Population!O$23 -> 0.05969171795 | P6: =Population!P6/Population!P$23 -> 0.05974638338 | Q6: =Population!Q6/Population!Q$23 -> 0.05973900213 | R6: =Population!R6/Population!R$23 -> 0.05973051938 | S6: =Population!S6/Population!S$23 -> 0.05974192575 | T6: =Population!T6/Population!T$23 -> 0.05973361527 | U6: =Population!U6/Population!U$23 -> 0.05973786735 | V6: =Population!V6/Population!V$23 -> 0.05973627079 | W6: =Population!W6/Population!W$23 -> 0.05973662349 | X6: =Population!X6/Population!X$23 -> 0.05973672932 | Y6: =Population!Y6/Population!Y$23 -> 0.05973652287 | Z6: =Population!Z6/Population!Z$23 -> 0.05973668802 | AA6: =Population!AA6/Population!AA$23 -> 0.05973659396 | AB6: =Population!AB6/Population!AB$23 -> 0.05973663458 | AC6: =Population!AC6/Population!AC$23 -> 0.05973662275 | AD6: =Population!AD6/Population!AD$23 -> 0.05973662259 | AE6: =Population!AE6/Population!AE$23 -> 0.05973662608 | AF6: =Population!AF6/Population!AF$23 -> 0.05973662285 | AG6: =Population!AG6/Population!AG$23 -> 0.05973662487 | AH6: =Population!AH6/Population!AH$23 -> 0.0597366239 | AI6: =Population!AI6/Population!AI$23 -> 0.05973662424 | AJ6: =Population!AJ6/Population!AJ$23 -> 0.0597366242 | AK6: =Population!AK6/Population!AK$23 -> 0.05973662414 | AL6: =Population!AL6/Population!AL$23 -> 0.0597366242 | AM6: =Population!AM6/Population!AM$23 -> 0.05973662416 | AN6: =Population!AN6/Population!AN$23 -> 0.05973662418 | AO6: =Population!AO6/Population!AO$23 -> 0.05973662418 | AP6: =Population!AP6/Population!AP$23 -> 0.05973662418 | AQ6: =Population!AQ6/Population!AQ$23 -> 0.05973662418 | AR6: =Population!AR6/Population!AR$23 -> 0.05973662418 | AS6: =Population!AS6/Population!AS$23 -> 0.05973662418 | AT6: =Population!AT6/Population!AT$23 -> 0.05973662418 | AU6: =Population!AU6/Population!AU$23 -> 0.05973662418 | AV6: =Population!AV6/Population!AV$23 -> 0.05973662418 | AW6: =Population!AW6/Population!AW$23 -> 0.05973662418 | AX6: =Population!AX6/Population!AX$23 -> 0.05973662418 | AY6: =Population!AY6/Population!AY$23 -> 0.05973662418 | AZ6: =Population!AZ6/Population!AZ$23 -> 0.05973662418 | BA6: =Population!BA6/Population!BA$23 -> 0.05973662418 | BB6: =Population!BB6/Population!BB$23 -> 0.05973662418 | BD6: =EXP(-r_est*Lifetable!A6)*Lifetable!F6 -> 0.1491571895 | BE6: 0.06100980931
A7: =IF(Lifetable!A7 = "", "", "X"&Lifetable!A7) -> X5 | B7: =Population!B7/Population!B$23 -> 0.07142857143 | C7: =Population!C7/Population!C$23 -> 0.04607657927 | D7: =Population!D7/Population!D$23 -> 0.04305493194 | E7: =Population!E7/Population!E$23 -> 0.03175548278 | F7: =Population!F7/Population!F$23 -> 0.02282399372 | G7: =Population!G7/Population!G$23 -> 0.01504694685 | H7: =Population!H7/Population!H$23 -> 0.03030519653 | I7: =Population!I7/Population!I$23 -> 0.02172777662 | J7: =Population!J7/Population!J$23 -> 0.02410702961 | K7: =Population!K7/Population!K$23 -> 0.02371452819 | L7: =Population!L7/Population!L$23 -> 0.02372864076 | M7: =Population!M7/Population!M$23 -> 0.02391835271 | N7: =Population!N7/Population!N$23 -> 0.02366990077 | O7: =Population!O7/Population!O$23 -> 0.02383406743 | P7: =Population!P7/Population!P$23 -> 0.0237654043 | Q7: =Population!Q7/Population!Q$23 -> 0.02378511473 | R7: =Population!R7/Population!R$23 -> 0.0237829226 | S7: =Population!S7/Population!S$23 -> 0.02377935381 | T7: =Population!T7/Population!T$23 -> 0.02378388384 | U7: =Population!U7/Population!U$23 -> 0.02378065157 | V7: =Population!V7/Population!V$23 -> 0.02378227201 | W7: =Population!W7/Population!W$23 -> 0.02378168018 | X7: =Population!X7/Population!X$23 -> 0.02378180118 | Y7: =Population!Y7/Population!Y$23 -> 0.0237818495 | Z7: =Population!Z7/Population!Z$23 -> 0.02378176673 | AA7: =Population!AA7/Population!AA$23 -> 0.02378183124 | AB7: =Population!AB7/Population!AB$23 -> 0.02378179516 | AC7: =Population!AC7/Population!AC$23 -> 0.02378181042 | AD7: =Population!AD7/Population!AD$23 -> 0.02378180617 | AE7: =Population!AE7/Population!AE$23 -> 0.02378180593 | AF7: =Population!AF7/Population!AF$23 -> 0.02378180735 | AG7: =Population!AG7/Population!AG$23 -> 0.02378180608 | AH7: =Population!AH7/Population!AH$23 -> 0.02378180686 | AI7: =Population!AI7/Population!AI$23 -> 0.0237818065 | AJ7: =Population!AJ7/Population!AJ$23 -> 0.02378180662 | AK7: =Population!AK7/Population!AK$23 -> 0.02378180661 | AL7: =Population!AL7/Population!AL$23 -> 0.02378180658 | AM7: =Population!AM7/Population!AM$23 -> 0.02378180661 | AN7: =Population!AN7/Population!AN$23 -> 0.02378180659 | AO7: =Population!AO7/Population!AO$23 -> 0.0237818066 | AP7: =Population!AP7/Population!AP$23 -> 0.0237818066 | AQ7: =Population!AQ7/Population!AQ$23 -> 0.0237818066 | AR7: =Population!AR7/Population!AR$23 -> 0.0237818066 | AS7: =Population!AS7/Population!AS$23 -> 0.0237818066 | AT7: =Population!AT7/Population!AT$23 -> 0.0237818066 | AU7: =Population!AU7/Population!AU$23 -> 0.0237818066 | AV7: =Population!AV7/Population!AV$23 -> 0.0237818066 | AW7: =Population!AW7/Population!AW$23 -> 0.0237818066 | AX7: =Population!AX7/Population!AX$23 -> 0.0237818066 | AY7: =Population!AY7/Population!AY$23 -> 0.0237818066 | AZ7: =Population!AZ7/Population!AZ$23 -> 0.0237818066 | BA7: =Population!BA7/Population!BA$23 -> 0.0237818066 | BB7: =Population!BB7/Population!BB$23 -> 0.0237818066 | BD7: =EXP(-r_est*Lifetable!A7)*Lifetable!F7 -> 0.05983421791 | BE7: 0.02447400783
A8: =IF(Lifetable!A8 = "", "", "X"&Lifetable!A8) ->  | B8: =Population!B8/Population!B$23 -> 0 | C8: =Population!C8/Population!C$23 -> 0 | D8: =Population!D8/Population!D$23 -> 0 | E8: =Population!E8/Population!E$23 -> 0 | F8: =Population!F8/Population!F$23 -> 0 | G8: =Population!G8/Population!G$23 -> 0 | H8: =Population!H8/Population!H$23 -> 0 | I8: =Population!I8/Population!I$23 -> 0 | J8: =Population!J8/Population!J$23 -> 0 | K8: =Population!K8/Population!K$23 -> 0 | L8: =Population!L8/Population!L$23 -> 0 | M8: =Population!M8/Population!M$23 -> 0 | N8: =Population!N8/Population!N$23 -> 0 | O8: =Population!O8/Population!O$23 -> 0 | P8: =Population!P8/Population!P$23 -> 0 | Q8: =Population!Q8/Population!Q$23 -> 0 | R8: =Population!R8/Population!R$23 -> 0 | S8: =Population!S8/Population!S$23 -> 0 | T8: =Population!T8/Population!T$23 -> 0 | U8: =Population!U8/Population!U$23 -> 0 | V8: =Population!V8/Population!V$23 -> 0 | W8: =Population!W8/Population!W$23 -> 0 | X8: =Population!X8/Population!X$23 -> 0 | Y8: =Population!Y8/Population!Y$23 -> 0 | Z8: =Population!Z8/Population!Z$23 -> 0 | AA8: =Population!AA8/Population!AA$23 -> 0 | AB8: =Population!AB8/Population!AB$23 -> 0 | AC8: =Population!AC8/Population!AC$23 -> 0 | AD8: =Population!AD8/Population!AD$23 -> 0 | AE8: =Population!AE8/Population!AE$23 -> 0 | AF8: =Population!AF8/Population!AF$23 -> 0 | AG8: =Population!AG8/Population!AG$23 -> 0 | AH8: =Population!AH8/Population!AH$23 -> 0 | AI8: =Population!AI8/Population!AI$23 -> 0 | AJ8: =Population!AJ8/Population!AJ$23 -> 0 | AK8: =Population!AK8/Population!AK$23 -> 0 | AL8: =Population!AL8/Population!AL$23 -> 0 | AM8: =Population!AM8/Population!AM$23 -> 0 | AN8: =Population!AN8/Population!AN$23 -> 0 | AO8: =Population!AO8/Population!AO$23 -> 0 | AP8: =Population!AP8/Population!AP$23 -> 0 | AQ8: =Population!AQ8/Population!AQ$23 -> 0 | AR8: =Population!AR8/Population!AR$23 -> 0 | AS8: =Population!AS8/Population!AS$23 -> 0 | AT8: =Population!AT8/Population!AT$23 -> 0 | AU8: =Population!AU8/Population!AU$23 -> 0 | AV8: =Population!AV8/Population!AV$23 -> 0 | AW8: =Population!AW8/Population!AW$23 -> 0 | AX8: =Population!AX8/Population!AX$23 -> 0 | AY8: =Population!AY8/Population!AY$23 -> 0 | AZ8: =Population!AZ8/Population!AZ$23 -> 0 | BA8: =Population!BA8/Population!BA$23 -> 0 | BB8: =Population!BB8/Population!BB$23 -> 0 | BD8: =EXP(-r_est*Lifetable!A8)*Lifetable!F8 -> 0 | BE8: 0
A9: =IF(Lifetable!A9 = "", "", "X"&Lifetable!A9) ->  | B9: =Population!B9/Population!B$23 -> 0 | C9: =Population!C9/Population!C$23 -> 0 | D9: =Population!D9/Population!D$23 -> 0 | E9: =Population!E9/Population!E$23 -> 0 | F9: =Population!F9/Population!F$23 -> 0 | G9: =Population!G9/Population!G$23 -> 0 | H9: =Population!H9/Population!H$23 -> 0 | I9: =Population!I9/Population!I$23 -> 0 | J9: =Population!J9/Population!J$23 -> 0 | K9: =Population!K9/Population!K$23 -> 0 | L9: =Population!L9/Population!L$23 -> 0 | M9: =Population!M9/Population!M$23 -> 0 | N9: =Population!N9/Population!N$23 -> 0 | O9: =Population!O9/Population!O$23 -> 0 | P9: =Population!P9/Population!P$23 -> 0 | Q9: =Population!Q9/Population!Q$23 -> 0 | R9: =Population!R9/Population!R$23 -> 0 | S9: =Population!S9/Population!S$23 -> 0 | T9: =Population!T9/Population!T$23 -> 0 | U9: =Population!U9/Population!U$23 -> 0 | V9: =Population!V9/Population!V$23 -> 0 | W9: =Population!W9/Population!W$23 -> 0 | X9: =Population!X9/Population!X$23 -> 0 | Y9: =Population!Y9/Population!Y$23 -> 0 | Z9: =Population!Z9/Population!Z$23 -> 0 | AA9: =Population!AA9/Population!AA$23 -> 0 | AB9: =Population!AB9/Population!AB$23 -> 0 | AC9: =Population!AC9/Population!AC$23 -> 0 | AD9: =Population!AD9/Population!AD$23 -> 0 | AE9: =Population!AE9/Population!AE$23 -> 0 | AF9: =Population!AF9/Population!AF$23 -> 0 | AG9: =Population!AG9/Population!AG$23 -> 0 | AH9: =Population!AH9/Population!AH$23 -> 0 | AI9: =Population!AI9/Population!AI$23 -> 0 | AJ9: =Population!AJ9/Population!AJ$23 -> 0 | AK9: =Population!AK9/Population!AK$23 -> 0 | AL9: =Population!AL9/Population!AL$23 -> 0 | AM9: =Population!AM9/Population!AM$23 -> 0 | AN9: =Population!AN9/Population!AN$23 -> 0 | AO9: =Population!AO9/Population!AO$23 -> 0 | AP9: =Population!AP9/Population!AP$23 -> 0 | AQ9: =Population!AQ9/Population!AQ$23 -> 0 | AR9: =Population!AR9/Population!AR$23 -> 0 | AS9: =Population!AS9/Population!AS$23 -> 0 | AT9: =Population!AT9/Population!AT$23 -> 0 | AU9: =Population!AU9/Population!AU$23 -> 0 | AV9: =Population!AV9/Population!AV$23 -> 0 | AW9: =Population!AW9/Population!AW$23 -> 0 | AX9: =Population!AX9/Population!AX$23 -> 0 | AY9: =Population!AY9/Population!AY$23 -> 0 | AZ9: =Population!AZ9/Population!AZ$23 -> 0 | BA9: =Population!BA9/Population!BA$23 -> 0 | BB9: =Population!BB9/Population!BB$23 -> 0 | BD9: =EXP(-r_est*Lifetable!A9)*Lifetable!F9 -> 0 | BE9: 0
A10: =IF(Lifetable!A10 = "", "", "X"&Lifetable!A10) ->  | B10: =Population!B10/Population!B$23 -> 0 | C10: =Population!C10/Population!C$23 -> 0 | D10: =Population!D10/Population!D$23 -> 0 | E10: =Population!E10/Population!E$23 -> 0 | F10: =Population!F10/Population!F$23 -> 0 | G10: =Population!G10/Population!G$23 -> 0 | H10: =Population!H10/Population!H$23 -> 0 | I10: =Population!I10/Population!I$23 -> 0 | J10: =Population!J10/Population!J$23 -> 0 | K10: =Population!K10/Population!K$23 -> 0 | L10: =Population!L10/Population!L$23 -> 0 | M10: =Population!M10/Population!M$23 -> 0 | N10: =Population!N10/Population!N$23 -> 0 | O10: =Population!O10/Population!O$23 -> 0 | P10: =Population!P10/Population!P$23 -> 0 | Q10: =Population!Q10/Population!Q$23 -> 0 | R10: =Population!R10/Population!R$23 -> 0 | S10: =Population!S10/Population!S$23 -> 0 | T10: =Population!T10/Population!T$23 -> 0 | U10: =Population!U10/Population!U$23 -> 0 | V10: =Population!V10/Population!V$23 -> 0 | W10: =Population!W10/Population!W$23 -> 0 | X10: =Population!X10/Population!X$23 -> 0 | Y10: =Population!Y10/Population!Y$23 -> 0 | Z10: =Population!Z10/Population!Z$23 -> 0 | AA10: =Population!AA10/Population!AA$23 -> 0 | AB10: =Population!AB10/Population!AB$23 -> 0 | AC10: =Population!AC10/Population!AC$23 -> 0 | AD10: =Population!AD10/Population!AD$23 -> 0 | AE10: =Population!AE10/Population!AE$23 -> 0 | AF10: =Population!AF10/Population!AF$23 -> 0 | AG10: =Population!AG10/Population!AG$23 -> 0 | AH10: =Population!AH10/Population!AH$23 -> 0 | AI10: =Population!AI10/Population!AI$23 -> 0 | AJ10: =Population!AJ10/Population!AJ$23 -> 0 | AK10: =Population!AK10/Population!AK$23 -> 0 | AL10: =Population!AL10/Population!AL$23 -> 0 | AM10: =Population!AM10/Population!AM$23 -> 0 | AN10: =Population!AN10/Population!AN$23 -> 0 | AO10: =Population!AO10/Population!AO$23 -> 0 | AP10: =Population!AP10/Population!AP$23 -> 0 | AQ10: =Population!AQ10/Population!AQ$23 -> 0 | AR10: =Population!AR10/Population!AR$23 -> 0 | AS10: =Population!AS10/Population!AS$23 -> 0 | AT10: =Population!AT10/Population!AT$23 -> 0 | AU10: =Population!AU10/Population!AU$23 -> 0 | AV10: =Population!AV10/Population!AV$23 -> 0 | AW10: =Population!AW10/Population!AW$23 -> 0 | AX10: =Population!AX10/Population!AX$23 -> 0 | AY10: =Population!AY10/Population!AY$23 -> 0 | AZ10: =Population!AZ10/Population!AZ$23 -> 0 | BA10: =Population!BA10/Population!BA$23 -> 0 | BB10: =Population!BB10/Population!BB$23 -> 0 | BD10: =EXP(-r_est*Lifetable!A10)*Lifetable!F10 -> 0 | BE10: 0
A11: =IF(Lifetable!A11 = "", "", "X"&Lifetable!A11) ->  | B11: =Population!B11/Population!B$23 -> 0 | C11: =Population!C11/Population!C$23 -> 0 | D11: =Population!D11/Population!D$23 -> 0 | E11: =Population!E11/Population!E$23 -> 0 | F11: =Population!F11/Population!F$23 -> 0 | G11: =Population!G11/Population!G$23 -> 0 | H11: =Population!H11/Population!H$23 -> 0 | I11: =Population!I11/Population!I$23 -> 0 | J11: =Population!J11/Population!J$23 -> 0 | K11: =Population!K11/Population!K$23 -> 0 | L11: =Population!L11/Population!L$23 -> 0 | M11: =Population!M11/Population!M$23 -> 0 | N11: =Population!N11/Population!N$23 -> 0 | O11: =Population!O11/Population!O$23 -> 0 | P11: =Population!P11/Population!P$23 -> 0 | Q11: =Population!Q11/Population!Q$23 -> 0 | R11: =Population!R11/Population!R$23 -> 0 | S11: =Population!S11/Population!S$23 -> 0 | T11: =Population!T11/Population!T$23 -> 0 | U11: =Population!U11/Population!U$23 -> 0 | V11: =Population!V11/Population!V$23 -> 0 | W11: =Population!W11/Population!W$23 -> 0 | X11: =Population!X11/Population!X$23 -> 0 | Y11: =Population!Y11/Population!Y$23 -> 0 | Z11: =Population!Z11/Population!Z$23 -> 0 | AA11: =Population!AA11/Population!AA$23 -> 0 | AB11: =Population!AB11/Population!AB$23 -> 0 | AC11: =Population!AC11/Population!AC$23 -> 0 | AD11: =Population!AD11/Population!AD$23 -> 0 | AE11: =Population!AE11/Population!AE$23 -> 0 | AF11: =Population!AF11/Population!AF$23 -> 0 | AG11: =Population!AG11/Population!AG$23 -> 0 | AH11: =Population!AH11/Population!AH$23 -> 0 | AI11: =Population!AI11/Population!AI$23 -> 0 | AJ11: =Population!AJ11/Population!AJ$23 -> 0 | AK11: =Population!AK11/Population!AK$23 -> 0 | AL11: =Population!AL11/Population!AL$23 -> 0 | AM11: =Population!AM11/Population!AM$23 -> 0 | AN11: =Population!AN11/Population!AN$23 -> 0 | AO11: =Population!AO11/Population!AO$23 -> 0 | AP11: =Population!AP11/Population!AP$23 -> 0 | AQ11: =Population!AQ11/Population!AQ$23 -> 0 | AR11: =Population!AR11/Population!AR$23 -> 0 | AS11: =Population!AS11/Population!AS$23 -> 0 | AT11: =Population!AT11/Population!AT$23 -> 0 | AU11: =Population!AU11/Population!AU$23 -> 0 | AV11: =Population!AV11/Population!AV$23 -> 0 | AW11: =Population!AW11/Population!AW$23 -> 0 | AX11: =Population!AX11/Population!AX$23 -> 0 | AY11: =Population!AY11/Population!AY$23 -> 0 | AZ11: =Population!AZ11/Population!AZ$23 -> 0 | BA11: =Population!BA11/Population!BA$23 -> 0 | BB11: =Population!BB11/Population!BB$23 -> 0 | BD11: =EXP(-r_est*Lifetable!A11)*Lifetable!F11 -> 0 | BE11: 0
A12: =IF(Lifetable!A12 = "", "", "X"&Lifetable!A12) ->  | B12: =Population!B12/Population!B$23 -> 0 | C12: =Population!C12/Population!C$23 -> 0 | D12: =Population!D12/Population!D$23 -> 0 | E12: =Population!E12/Population!E$23 -> 0 | F12: =Population!F12/Population!F$23 -> 0 | G12: =Population!G12/Population!G$23 -> 0 | H12: =Population!H12/Population!H$23 -> 0 | I12: =Population!I12/Population!I$23 -> 0 | J12: =Population!J12/Population!J$23 -> 0 | K12: =Population!K12/Population!K$23 -> 0 | L12: =Population!L12/Population!L$23 -> 0 | M12: =Population!M12/Population!M$23 -> 0 | N12: =Population!N12/Population!N$23 -> 0 | O12: =Population!O12/Population!O$23 -> 0 | P12: =Population!P12/Population!P$23 -> 0 | Q12: =Population!Q12/Population!Q$23 -> 0 | R12: =Population!R12/Population!R$23 -> 0 | S12: =Population!S12/Population!S$23 -> 0 | T12: =Population!T12/Population!T$23 -> 0 | U12: =Population!U12/Population!U$23 -> 0 | V12: =Population!V12/Population!V$23 -> 0 | W12: =Population!W12/Population!W$23 -> 0 | X12: =Population!X12/Population!X$23 -> 0 | Y12: =Population!Y12/Population!Y$23 -> 0 | Z12: =Population!Z12/Population!Z$23 -> 0 | AA12: =Population!AA12/Population!AA$23 -> 0 | AB12: =Population!AB12/Population!AB$23 -> 0 | AC12: =Population!AC12/Population!AC$23 -> 0 | AD12: =Population!AD12/Population!AD$23 -> 0 | AE12: =Population!AE12/Population!AE$23 -> 0 | AF12: =Population!AF12/Population!AF$23 -> 0 | AG12: =Population!AG12/Population!AG$23 -> 0 | AH12: =Population!AH12/Population!AH$23 -> 0 | AI12: =Population!AI12/Population!AI$23 -> 0 | AJ12: =Population!AJ12/Population!AJ$23 -> 0 | AK12: =Population!AK12/Population!AK$23 -> 0 | AL12: =Population!AL12/Population!AL$23 -> 0 | AM12: =Population!AM12/Population!AM$23 -> 0 | AN12: =Population!AN12/Population!AN$23 -> 0 | AO12: =Population!AO12/Population!AO$23 -> 0 | AP12: =Population!AP12/Population!AP$23 -> 0 | AQ12: =Population!AQ12/Population!AQ$23 -> 0 | AR12: =Population!AR12/Population!AR$23 -> 0 | AS12: =Population!AS12/Population!AS$23 -> 0 | AT12: =Population!AT12/Population!AT$23 -> 0 | AU12: =Population!AU12/Population!AU$23 -> 0 | AV12: =Population!AV12/Population!AV$23 -> 0 | AW12: =Population!AW12/Population!AW$23 -> 0 | AX12: =Population!AX12/Population!AX$23 -> 0 | AY12: =Population!AY12/Population!AY$23 -> 0 | AZ12: =Population!AZ12/Population!AZ$23 -> 0 | BA12: =Population!BA12/Population!BA$23 -> 0 | BB12: =Population!BB12/Population!BB$23 -> 0 | BD12: =EXP(-r_est*Lifetable!A12)*Lifetable!F12 -> 0 | BE12: 0
A13: =IF(Lifetable!A13 = "", "", "X"&Lifetable!A13) ->  | B13: =Population!B13/Population!B$23 -> 0 | C13: =Population!C13/Population!C$23 -> 0 | D13: =Population!D13/Population!D$23 -> 0 | E13: =Population!E13/Population!E$23 -> 0 | F13: =Population!F13/Population!F$23 -> 0 | G13: =Population!G13/Population!G$23 -> 0 | H13: =Population!H13/Population!H$23 -> 0 | I13: =Population!I13/Population!I$23 -> 0 | J13: =Population!J13/Population!J$23 -> 0 | K13: =Population!K13/Population!K$23 -> 0 | L13: =Population!L13/Population!L$23 -> 0 | M13: =Population!M13/Population!M$23 -> 0 | N13: =Population!N13/Population!N$23 -> 0 | O13: =Population!O13/Population!O$23 -> 0 | P13: =Population!P13/Population!P$23 -> 0 | Q13: =Population!Q13/Population!Q$23 -> 0 | R13: =Population!R13/Population!R$23 -> 0 | S13: =Population!S13/Population!S$23 -> 0 | T13: =Population!T13/Population!T$23 -> 0 | U13: =Population!U13/Population!U$23 -> 0 | V13: =Population!V13/Population!V$23 -> 0 | W13: =Population!W13/Population!W$23 -> 0 | X13: =Population!X13/Population!X$23 -> 0 | Y13: =Population!Y13/Population!Y$23 -> 0 | Z13: =Population!Z13/Population!Z$23 -> 0 | AA13: =Population!AA13/Population!AA$23 -> 0 | AB13: =Population!AB13/Population!AB$23 -> 0 | AC13: =Population!AC13/Population!AC$23 -> 0 | AD13: =Population!AD13/Population!AD$23 -> 0 | AE13: =Population!AE13/Population!AE$23 -> 0 | AF13: =Population!AF13/Population!AF$23 -> 0 | AG13: =Population!AG13/Population!AG$23 -> 0 | AH13: =Population!AH13/Population!AH$23 -> 0 | AI13: =Population!AI13/Population!AI$23 -> 0 | AJ13: =Population!AJ13/Population!AJ$23 -> 0 | AK13: =Population!AK13/Population!AK$23 -> 0 | AL13: =Population!AL13/Population!AL$23 -> 0 | AM13: =Population!AM13/Population!AM$23 -> 0 | AN13: =Population!AN13/Population!AN$23 -> 0 | AO13: =Population!AO13/Population!AO$23 -> 0 | AP13: =Population!AP13/Population!AP$23 -> 0 | AQ13: =Population!AQ13/Population!AQ$23 -> 0 | AR13: =Population!AR13/Population!AR$23 -> 0 | AS13: =Population!AS13/Population!AS$23 -> 0 | AT13: =Population!AT13/Population!AT$23 -> 0 | AU13: =Population!AU13/Population!AU$23 -> 0 | AV13: =Population!AV13/Population!AV$23 -> 0 | AW13: =Population!AW13/Population!AW$23 -> 0 | AX13: =Population!AX13/Population!AX$23 -> 0 | AY13: =Population!AY13/Population!AY$23 -> 0 | AZ13: =Population!AZ13/Population!AZ$23 -> 0 | BA13: =Population!BA13/Population!BA$23 -> 0 | BB13: =Population!BB13/Population!BB$23 -> 0 | BD13: =EXP(-r_est*Lifetable!A13)*Lifetable!F13 -> 0 | BE13: 0
A14: =IF(Lifetable!A14 = "", "", "X"&Lifetable!A14) ->  | B14: =Population!B14/Population!B$23 -> 0 | C14: =Population!C14/Population!C$23 -> 0 | D14: =Population!D14/Population!D$23 -> 0 | E14: =Population!E14/Population!E$23 -> 0 | F14: =Population!F14/Population!F$23 -> 0 | G14: =Population!G14/Population!G$23 -> 0 | H14: =Population!H14/Population!H$23 -> 0 | I14: =Population!I14/Population!I$23 -> 0 | J14: =Population!J14/Population!J$23 -> 0 | K14: =Population!K14/Population!K$23 -> 0 | L14: =Population!L14/Population!L$23 -> 0 | M14: =Population!M14/Population!M$23 -> 0 | N14: =Population!N14/Population!N$23 -> 0 | O14: =Population!O14/Population!O$23 -> 0 | P14: =Population!P14/Population!P$23 -> 0 | Q14: =Population!Q14/Population!Q$23 -> 0 | R14: =Population!R14/Population!R$23 -> 0 | S14: =Population!S14/Population!S$23 -> 0 | T14: =Population!T14/Population!T$23 -> 0 | U14: =Population!U14/Population!U$23 -> 0 | V14: =Population!V14/Population!V$23 -> 0 | W14: =Population!W14/Population!W$23 -> 0 | X14: =Population!X14/Population!X$23 -> 0 | Y14: =Population!Y14/Population!Y$23 -> 0 | Z14: =Population!Z14/Population!Z$23 -> 0 | AA14: =Population!AA14/Population!AA$23 -> 0 | AB14: =Population!AB14/Population!AB$23 -> 0 | AC14: =Population!AC14/Population!AC$23 -> 0 | AD14: =Population!AD14/Population!AD$23 -> 0 | AE14: =Population!AE14/Population!AE$23 -> 0 | AF14: =Population!AF14/Population!AF$23 -> 0 | AG14: =Population!AG14/Population!AG$23 -> 0 | AH14: =Population!AH14/Population!AH$23 -> 0 | AI14: =Population!AI14/Population!AI$23 -> 0 | AJ14: =Population!AJ14/Population!AJ$23 -> 0 | AK14: =Population!AK14/Population!AK$23 -> 0 | AL14: =Population!AL14/Population!AL$23 -> 0 | AM14: =Population!AM14/Population!AM$23 -> 0 | AN14: =Population!AN14/Population!AN$23 -> 0 | AO14: =Population!AO14/Population!AO$23 -> 0 | AP14: =Population!AP14/Population!AP$23 -> 0 | AQ14: =Population!AQ14/Population!AQ$23 -> 0 | AR14: =Population!AR14/Population!AR$23 -> 0 | AS14: =Population!AS14/Population!AS$23 -> 0 | AT14: =Population!AT14/Population!AT$23 -> 0 | AU14: =Population!AU14/Population!AU$23 -> 0 | AV14: =Population!AV14/Population!AV$23 -> 0 | AW14: =Population!AW14/Population!AW$23 -> 0 | AX14: =Population!AX14/Population!AX$23 -> 0 | AY14: =Population!AY14/Population!AY$23 -> 0 | AZ14: =Population!AZ14/Population!AZ$23 -> 0 | BA14: =Population!BA14/Population!BA$23 -> 0 | BB14: =Population!BB14/Population!BB$23 -> 0 | BD14: =EXP(-r_est*Lifetable!A14)*Lifetable!F14 -> 0 | BE14: =BD14/BD$23 -> 0
A15: =IF(Lifetable!A15 = "", "", "X"&Lifetable!A15) ->  | B15: =Population!B15/Population!B$23 -> 0 | C15: =Population!C15/Population!C$23 -> 0 | D15: =Population!D15/Population!D$23 -> 0 | E15: =Population!E15/Population!E$23 -> 0 | F15: =Population!F15/Population!F$23 -> 0 | G15: =Population!G15/Population!G$23 -> 0 | H15: =Population!H15/Population!H$23 -> 0 | I15: =Population!I15/Population!I$23 -> 0 | J15: =Population!J15/Population!J$23 -> 0 | K15: =Population!K15/Population!K$23 -> 0 | L15: =Population!L15/Population!L$23 -> 0 | M15: =Population!M15/Population!M$23 -> 0 | N15: =Population!N15/Population!N$23 -> 0 | O15: =Population!O15/Population!O$23 -> 0 | P15: =Population!P15/Population!P$23 -> 0 | Q15: =Population!Q15/Population!Q$23 -> 0 | R15: =Population!R15/Population!R$23 -> 0 | S15: =Population!S15/Population!S$23 -> 0 | T15: =Population!T15/Population!T$23 -> 0 | U15: =Population!U15/Population!U$23 -> 0 | V15: =Population!V15/Population!V$23 -> 0 | W15: =Population!W15/Population!W$23 -> 0 | X15: =Population!X15/Population!X$23 -> 0 | Y15: =Population!Y15/Population!Y$23 -> 0 | Z15: =Population!Z15/Population!Z$23 -> 0 | AA15: =Population!AA15/Population!AA$23 -> 0 | AB15: =Population!AB15/Population!AB$23 -> 0 | AC15: =Population!AC15/Population!AC$23 -> 0 | AD15: =Population!AD15/Population!AD$23 -> 0 | AE15: =Population!AE15/Population!AE$23 -> 0 | AF15: =Population!AF15/Population!AF$23 -> 0 | AG15: =Population!AG15/Population!AG$23 -> 0 | AH15: =Population!AH15/Population!AH$23 -> 0 | AI15: =Population!AI15/Population!AI$23 -> 0 | AJ15: =Population!AJ15/Population!AJ$23 -> 0 | AK15: =Population!AK15/Population!AK$23 -> 0 | AL15: =Population!AL15/Population!AL$23 -> 0 | AM15: =Population!AM15/Population!AM$23 -> 0 | AN15: =Population!AN15/Population!AN$23 -> 0 | AO15: =Population!AO15/Population!AO$23 -> 0 | AP15: =Population!AP15/Population!AP$23 -> 0 | AQ15: =Population!AQ15/Population!AQ$23 -> 0 | AR15: =Population!AR15/Population!AR$23 -> 0 | AS15: =Population!AS15/Population!AS$23 -> 0 | AT15: =Population!AT15/Population!AT$23 -> 0 | AU15: =Population!AU15/Population!AU$23 -> 0 | AV15: =Population!AV15/Population!AV$23 -> 0 | AW15: =Population!AW15/Population!AW$23 -> 0 | AX15: =Population!AX15/Population!AX$23 -> 0 | AY15: =Population!AY15/Population!AY$23 -> 0 | AZ15: =Population!AZ15/Population!AZ$23 -> 0 | BA15: =Population!BA15/Population!BA$23 -> 0 | BB15: =Population!BB15/Population!BB$23 -> 0 | BD15: =EXP(-r_est*Lifetable!A15)*Lifetable!F15 -> 0 | BE15: 0
A16: =IF(Lifetable!A16 = "", "", "X"&Lifetable!A16) ->  | B16: =Population!B16/Population!B$23 -> 0 | C16: =Population!C16/Population!C$23 -> 0 | D16: =Population!D16/Population!D$23 -> 0 | E16: =Population!E16/Population!E$23 -> 0 | F16: =Population!F16/Population!F$23 -> 0 | G16: =Population!G16/Population!G$23 -> 0 | H16: =Population!H16/Population!H$23 -> 0 | I16: =Population!I16/Population!I$23 -> 0 | J16: =Population!J16/Population!J$23 -> 0 | K16: =Population!K16/Population!K$23 -> 0 | L16: =Population!L16/Population!L$23 -> 0 | M16: =Population!M16/Population!M$23 -> 0 | N16: =Population!N16/Population!N$23 -> 0 | O16: =Population!O16/Population!O$23 -> 0 | P16: =Population!P16/Population!P$23 -> 0 | Q16: =Population!Q16/Population!Q$23 -> 0 | R16: =Population!R16/Population!R$23 -> 0 | S16: =Population!S16/Population!S$23 -> 0 | T16: =Population!T16/Population!T$23 -> 0 | U16: =Population!U16/Population!U$23 -> 0 | V16: =Population!V16/Population!V$23 -> 0 | W16: =Population!W16/Population!W$23 -> 0 | X16: =Population!X16/Population!X$23 -> 0 | Y16: =Population!Y16/Population!Y$23 -> 0 | Z16: =Population!Z16/Population!Z$23 -> 0 | AA16: =Population!AA16/Population!AA$23 -> 0 | AB16: =Population!AB16/Population!AB$23 -> 0 | AC16: =Population!AC16/Population!AC$23 -> 0 | AD16: =Population!AD16/Population!AD$23 -> 0 | AE16: =Population!AE16/Population!AE$23 -> 0 | AF16: =Population!AF16/Population!AF$23 -> 0 | AG16: =Population!AG16/Population!AG$23 -> 0 | AH16: =Population!AH16/Population!AH$23 -> 0 | AI16: =Population!AI16/Population!AI$23 -> 0 | AJ16: =Population!AJ16/Population!AJ$23 -> 0 | AK16: =Population!AK16/Population!AK$23 -> 0 | AL16: =Population!AL16/Population!AL$23 -> 0 | AM16: =Population!AM16/Population!AM$23 -> 0 | AN16: =Population!AN16/Population!AN$23 -> 0 | AO16: =Population!AO16/Population!AO$23 -> 0 | AP16: =Population!AP16/Population!AP$23 -> 0 | AQ16: =Population!AQ16/Population!AQ$23 -> 0 | AR16: =Population!AR16/Population!AR$23 -> 0 | AS16: =Population!AS16/Population!AS$23 -> 0 | AT16: =Population!AT16/Population!AT$23 -> 0 | AU16: =Population!AU16/Population!AU$23 -> 0 | AV16: =Population!AV16/Population!AV$23 -> 0 | AW16: =Population!AW16/Population!AW$23 -> 0 | AX16: =Population!AX16/Population!AX$23 -> 0 | AY16: =Population!AY16/Population!AY$23 -> 0 | AZ16: =Population!AZ16/Population!AZ$23 -> 0 | BA16: =Population!BA16/Population!BA$23 -> 0 | BB16: =Population!BB16/Population!BB$23 -> 0 | BD16: =EXP(-r_est*Lifetable!A16)*Lifetable!F16 -> 0 | BE16: 0
A17: =IF(Lifetable!A17 = "", "", "X"&Lifetable!A17) ->  | B17: =Population!B17/Population!B$23 -> 0 | C17: =Population!C17/Population!C$23 -> 0 | D17: =Population!D17/Population!D$23 -> 0 | E17: =Population!E17/Population!E$23 -> 0 | F17: =Population!F17/Population!F$23 -> 0 | G17: =Population!G17/Population!G$23 -> 0 | H17: =Population!H17/Population!H$23 -> 0 | I17: =Population!I17/Population!I$23 -> 0 | J17: =Population!J17/Population!J$23 -> 0 | K17: =Population!K17/Population!K$23 -> 0 | L17: =Population!L17/Population!L$23 -> 0 | M17: =Population!M17/Population!M$23 -> 0 | N17: =Population!N17/Population!N$23 -> 0 | O17: =Population!O17/Population!O$23 -> 0 | P17: =Population!P17/Population!P$23 -> 0 | Q17: =Population!Q17/Population!Q$23 -> 0 | R17: =Population!R17/Population!R$23 -> 0 | S17: =Population!S17/Population!S$23 -> 0 | T17: =Population!T17/Population!T$23 -> 0 | U17: =Population!U17/Population!U$23 -> 0 | V17: =Population!V17/Population!V$23 -> 0 | W17: =Population!W17/Population!W$23 -> 0 | X17: =Population!X17/Population!X$23 -> 0 | Y17: =Population!Y17/Population!Y$23 -> 0 | Z17: =Population!Z17/Population!Z$23 -> 0 | AA17: =Population!AA17/Population!AA$23 -> 0 | AB17: =Population!AB17/Population!AB$23 -> 0 | AC17: =Population!AC17/Population!AC$23 -> 0 | AD17: =Population!AD17/Population!AD$23 -> 0 | AE17: =Population!AE17/Population!AE$23 -> 0 | AF17: =Population!AF17/Population!AF$23 -> 0 | AG17: =Population!AG17/Population!AG$23 -> 0 | AH17: =Population!AH17/Population!AH$23 -> 0 | AI17: =Population!AI17/Population!AI$23 -> 0 | AJ17: =Population!AJ17/Population!AJ$23 -> 0 | AK17: =Population!AK17/Population!AK$23 -> 0 | AL17: =Population!AL17/Population!AL$23 -> 0 | AM17: =Population!AM17/Population!AM$23 -> 0 | AN17: =Population!AN17/Population!AN$23 -> 0 | AO17: =Population!AO17/Population!AO$23 -> 0 | AP17: =Population!AP17/Population!AP$23 -> 0 | AQ17: =Population!AQ17/Population!AQ$23 -> 0 | AR17: =Population!AR17/Population!AR$23 -> 0 | AS17: =Population!AS17/Population!AS$23 -> 0 | AT17: =Population!AT17/Population!AT$23 -> 0 | AU17: =Population!AU17/Population!AU$23 -> 0 | AV17: =Population!AV17/Population!AV$23 -> 0 | AW17: =Population!AW17/Population!AW$23 -> 0 | AX17: =Population!AX17/Population!AX$23 -> 0 | AY17: =Population!AY17/Population!AY$23 -> 0 | AZ17: =Population!AZ17/Population!AZ$23 -> 0 | BA17: =Population!BA17/Population!BA$23 -> 0 | BB17: =Population!BB17/Population!BB$23 -> 0 | BD17: =EXP(-r_est*Lifetable!A17)*Lifetable!F17 -> 0 | BE17: 0
A18: =IF(Lifetable!A18 = "", "", "X"&Lifetable!A18) ->  | B18: =Population!B18/Population!B$23 -> 0 | C18: =Population!C18/Population!C$23 -> 0 | D18: =Population!D18/Population!D$23 -> 0 | E18: =Population!E18/Population!E$23 -> 0 | F18: =Population!F18/Population!F$23 -> 0 | G18: =Population!G18/Population!G$23 -> 0 | H18: =Population!H18/Population!H$23 -> 0 | I18: =Population!I18/Population!I$23 -> 0 | J18: =Population!J18/Population!J$23 -> 0 | K18: =Population!K18/Population!K$23 -> 0 | L18: =Population!L18/Population!L$23 -> 0 | M18: =Population!M18/Population!M$23 -> 0 | N18: =Population!N18/Population!N$23 -> 0 | O18: =Population!O18/Population!O$23 -> 0 | P18: =Population!P18/Population!P$23 -> 0 | Q18: =Population!Q18/Population!Q$23 -> 0 | R18: =Population!R18/Population!R$23 -> 0 | S18: =Population!S18/Population!S$23 -> 0 | T18: =Population!T18/Population!T$23 -> 0 | U18: =Population!U18/Population!U$23 -> 0 | V18: =Population!V18/Population!V$23 -> 0 | W18: =Population!W18/Population!W$23 -> 0 | X18: =Population!X18/Population!X$23 -> 0 | Y18: =Population!Y18/Population!Y$23 -> 0 | Z18: =Population!Z18/Population!Z$23 -> 0 | AA18: =Population!AA18/Population!AA$23 -> 0 | AB18: =Population!AB18/Population!AB$23 -> 0 | AC18: =Population!AC18/Population!AC$23 -> 0 | AD18: =Population!AD18/Population!AD$23 -> 0 | AE18: =Population!AE18/Population!AE$23 -> 0 | AF18: =Population!AF18/Population!AF$23 -> 0 | AG18: =Population!AG18/Population!AG$23 -> 0 | AH18: =Population!AH18/Population!AH$23 -> 0 | AI18: =Population!AI18/Population!AI$23 -> 0 | AJ18: =Population!AJ18/Population!AJ$23 -> 0 | AK18: =Population!AK18/Population!AK$23 -> 0 | AL18: =Population!AL18/Population!AL$23 -> 0 | AM18: =Population!AM18/Population!AM$23 -> 0 | AN18: =Population!AN18/Population!AN$23 -> 0 | AO18: =Population!AO18/Population!AO$23 -> 0 | AP18: =Population!AP18/Population!AP$23 -> 0 | AQ18: =Population!AQ18/Population!AQ$23 -> 0 | AR18: =Population!AR18/Population!AR$23 -> 0 | AS18: =Population!AS18/Population!AS$23 -> 0 | AT18: =Population!AT18/Population!AT$23 -> 0 | AU18: =Population!AU18/Population!AU$23 -> 0 | AV18: =Population!AV18/Population!AV$23 -> 0 | AW18: =Population!AW18/Population!AW$23 -> 0 | AX18: =Population!AX18/Population!AX$23 -> 0 | AY18: =Population!AY18/Population!AY$23 -> 0 | AZ18: =Population!AZ18/Population!AZ$23 -> 0 | BA18: =Population!BA18/Population!BA$23 -> 0 | BB18: =Population!BB18/Population!BB$23 -> 0 | BD18: =EXP(-r_est*Lifetable!A18)*Lifetable!F18 -> 0 | BE18: 0
A19: =IF(Lifetable!A19 = "", "", "X"&Lifetable!A19) ->  | B19: =Population!B19/Population!B$23 -> 0 | C19: =Population!C19/Population!C$23 -> 0 | D19: =Population!D19/Population!D$23 -> 0 | E19: =Population!E19/Population!E$23 -> 0 | F19: =Population!F19/Population!F$23 -> 0 | G19: =Population!G19/Population!G$23 -> 0 | H19: =Population!H19/Population!H$23 -> 0 | I19: =Population!I19/Population!I$23 -> 0 | J19: =Population!J19/Population!J$23 -> 0 | K19: =Population!K19/Population!K$23 -> 0 | L19: =Population!L19/Population!L$23 -> 0 | M19: =Population!M19/Population!M$23 -> 0 | N19: =Population!N19/Population!N$23 -> 0 | O19: =Population!O19/Population!O$23 -> 0 | P19: =Population!P19/Population!P$23 -> 0 | Q19: =Population!Q19/Population!Q$23 -> 0 | R19: =Population!R19/Population!R$23 -> 0 | S19: =Population!S19/Population!S$23 -> 0 | T19: =Population!T19/Population!T$23 -> 0 | U19: =Population!U19/Population!U$23 -> 0 | V19: =Population!V19/Population!V$23 -> 0 | W19: =Population!W19/Population!W$23 -> 0 | X19: =Population!X19/Population!X$23 -> 0 | Y19: =Population!Y19/Population!Y$23 -> 0 | Z19: =Population!Z19/Population!Z$23 -> 0 | AA19: =Population!AA19/Population!AA$23 -> 0 | AB19: =Population!AB19/Population!AB$23 -> 0 | AC19: =Population!AC19/Population!AC$23 -> 0 | AD19: =Population!AD19/Population!AD$23 -> 0 | AE19: =Population!AE19/Population!AE$23 -> 0 | AF19: =Population!AF19/Population!AF$23 -> 0 | AG19: =Population!AG19/Population!AG$23 -> 0 | AH19: =Population!AH19/Population!AH$23 -> 0 | AI19: =Population!AI19/Population!AI$23 -> 0 | AJ19: =Population!AJ19/Population!AJ$23 -> 0 | AK19: =Population!AK19/Population!AK$23 -> 0 | AL19: =Population!AL19/Population!AL$23 -> 0 | AM19: =Population!AM19/Population!AM$23 -> 0 | AN19: =Population!AN19/Population!AN$23 -> 0 | AO19: =Population!AO19/Population!AO$23 -> 0 | AP19: =Population!AP19/Population!AP$23 -> 0 | AQ19: =Population!AQ19/Population!AQ$23 -> 0 | AR19: =Population!AR19/Population!AR$23 -> 0 | AS19: =Population!AS19/Population!AS$23 -> 0 | AT19: =Population!AT19/Population!AT$23 -> 0 | AU19: =Population!AU19/Population!AU$23 -> 0 | AV19: =Population!AV19/Population!AV$23 -> 0 | AW19: =Population!AW19/Population!AW$23 -> 0 | AX19: =Population!AX19/Population!AX$23 -> 0 | AY19: =Population!AY19/Population!AY$23 -> 0 | AZ19: =Population!AZ19/Population!AZ$23 -> 0 | BA19: =Population!BA19/Population!BA$23 -> 0 | BB19: =Population!BB19/Population!BB$23 -> 0 | BD19: =EXP(-r_est*Lifetable!A19)*Lifetable!F19 -> 0 | BE19: 0
A20: =IF(Lifetable!A20 = "", "", "X"&Lifetable!A20) ->  | B20: =Population!B20/Population!B$23 -> 0 | C20: =Population!C20/Population!C$23 -> 0 | D20: =Population!D20/Population!D$23 -> 0 | E20: =Population!E20/Population!E$23 -> 0 | F20: =Population!F20/Population!F$23 -> 0 | G20: =Population!G20/Population!G$23 -> 0 | H20: =Population!H20/Population!H$23 -> 0 | I20: =Population!I20/Population!I$23 -> 0 | J20: =Population!J20/Population!J$23 -> 0 | K20: =Population!K20/Population!K$23 -> 0 | L20: =Population!L20/Population!L$23 -> 0 | M20: =Population!M20/Population!M$23 -> 0 | N20: =Population!N20/Population!N$23 -> 0 | O20: =Population!O20/Population!O$23 -> 0 | P20: =Population!P20/Population!P$23 -> 0 | Q20: =Population!Q20/Population!Q$23 -> 0 | R20: =Population!R20/Population!R$23 -> 0 | S20: =Population!S20/Population!S$23 -> 0 | T20: =Population!T20/Population!T$23 -> 0 | U20: =Population!U20/Population!U$23 -> 0 | V20: =Population!V20/Population!V$23 -> 0 | W20: =Population!W20/Population!W$23 -> 0 | X20: =Population!X20/Population!X$23 -> 0 | Y20: =Population!Y20/Population!Y$23 -> 0 | Z20: =Population!Z20/Population!Z$23 -> 0 | AA20: =Population!AA20/Population!AA$23 -> 0 | AB20: =Population!AB20/Population!AB$23 -> 0 | AC20: =Population!AC20/Population!AC$23 -> 0 | AD20: =Population!AD20/Population!AD$23 -> 0 | AE20: =Population!AE20/Population!AE$23 -> 0 | AF20: =Population!AF20/Population!AF$23 -> 0 | AG20: =Population!AG20/Population!AG$23 -> 0 | AH20: =Population!AH20/Population!AH$23 -> 0 | AI20: =Population!AI20/Population!AI$23 -> 0 | AJ20: =Population!AJ20/Population!AJ$23 -> 0 | AK20: =Population!AK20/Population!AK$23 -> 0 | AL20: =Population!AL20/Population!AL$23 -> 0 | AM20: =Population!AM20/Population!AM$23 -> 0 | AN20: =Population!AN20/Population!AN$23 -> 0 | AO20: =Population!AO20/Population!AO$23 -> 0 | AP20: =Population!AP20/Population!AP$23 -> 0 | AQ20: =Population!AQ20/Population!AQ$23 -> 0 | AR20: =Population!AR20/Population!AR$23 -> 0 | AS20: =Population!AS20/Population!AS$23 -> 0 | AT20: =Population!AT20/Population!AT$23 -> 0 | AU20: =Population!AU20/Population!AU$23 -> 0 | AV20: =Population!AV20/Population!AV$23 -> 0 | AW20: =Population!AW20/Population!AW$23 -> 0 | AX20: =Population!AX20/Population!AX$23 -> 0 | AY20: =Population!AY20/Population!AY$23 -> 0 | AZ20: =Population!AZ20/Population!AZ$23 -> 0 | BA20: =Population!BA20/Population!BA$23 -> 0 | BB20: =Population!BB20/Population!BB$23 -> 0 | BD20: =EXP(-r_est*Lifetable!A20)*Lifetable!F20 -> 0 | BE20: 0
A21: =IF(Lifetable!A21 = "", "", "X"&Lifetable!A21) ->  | B21: =Population!B21/Population!B$23 -> 0 | C21: =Population!C21/Population!C$23 -> 0 | D21: =Population!D21/Population!D$23 -> 0 | E21: =Population!E21/Population!E$23 -> 0 | F21: =Population!F21/Population!F$23 -> 0 | G21: =Population!G21/Population!G$23 -> 0 | H21: =Population!H21/Population!H$23 -> 0 | I21: =Population!I21/Population!I$23 -> 0 | J21: =Population!J21/Population!J$23 -> 0 | K21: =Population!K21/Population!K$23 -> 0 | L21: =Population!L21/Population!L$23 -> 0 | M21: =Population!M21/Population!M$23 -> 0 | N21: =Population!N21/Population!N$23 -> 0 | O21: =Population!O21/Population!O$23 -> 0 | P21: =Population!P21/Population!P$23 -> 0 | Q21: =Population!Q21/Population!Q$23 -> 0 | R21: =Population!R21/Population!R$23 -> 0 | S21: =Population!S21/Population!S$23 -> 0 | T21: =Population!T21/Population!T$23 -> 0 | U21: =Population!U21/Population!U$23 -> 0 | V21: =Population!V21/Population!V$23 -> 0 | W21: =Population!W21/Population!W$23 -> 0 | X21: =Population!X21/Population!X$23 -> 0 | Y21: =Population!Y21/Population!Y$23 -> 0 | Z21: =Population!Z21/Population!Z$23 -> 0 | AA21: =Population!AA21/Population!AA$23 -> 0 | AB21: =Population!AB21/Population!AB$23 -> 0 | AC21: =Population!AC21/Population!AC$23 -> 0 | AD21: =Population!AD21/Population!AD$23 -> 0 | AE21: =Population!AE21/Population!AE$23 -> 0 | AF21: =Population!AF21/Population!AF$23 -> 0 | AG21: =Population!AG21/Population!AG$23 -> 0 | AH21: =Population!AH21/Population!AH$23 -> 0 | AI21: =Population!AI21/Population!AI$23 -> 0 | AJ21: =Population!AJ21/Population!AJ$23 -> 0 | AK21: =Population!AK21/Population!AK$23 -> 0 | AL21: =Population!AL21/Population!AL$23 -> 0 | AM21: =Population!AM21/Population!AM$23 -> 0 | AN21: =Population!AN21/Population!AN$23 -> 0 | AO21: =Population!AO21/Population!AO$23 -> 0 | AP21: =Population!AP21/Population!AP$23 -> 0 | AQ21: =Population!AQ21/Population!AQ$23 -> 0 | AR21: =Population!AR21/Population!AR$23 -> 0 | AS21: =Population!AS21/Population!AS$23 -> 0 | AT21: =Population!AT21/Population!AT$23 -> 0 | AU21: =Population!AU21/Population!AU$23 -> 0 | AV21: =Population!AV21/Population!AV$23 -> 0 | AW21: =Population!AW21/Population!AW$23 -> 0 | AX21: =Population!AX21/Population!AX$23 -> 0 | AY21: =Population!AY21/Population!AY$23 -> 0 | AZ21: =Population!AZ21/Population!AZ$23 -> 0 | BA21: =Population!BA21/Population!BA$23 -> 0 | BB21: =Population!BB21/Population!BB$23 -> 0 | BD21: =EXP(-r_est*Lifetable!A21)*Lifetable!F21 -> 0 | BE21: 0
A22: =IF(Lifetable!A22 = "", "", "X"&Lifetable!A22) ->  | B22: =Population!B22/Population!B$23 -> 0 | C22: =Population!C22/Population!C$23 -> 0 | D22: =Population!D22/Population!D$23 -> 0 | E22: =Population!E22/Population!E$23 -> 0 | F22: =Population!F22/Population!F$23 -> 0 | G22: =Population!G22/Population!G$23 -> 0 | H22: =Population!H22/Population!H$23 -> 0 | I22: =Population!I22/Population!I$23 -> 0 | J22: =Population!J22/Population!J$23 -> 0 | K22: =Population!K22/Population!K$23 -> 0 | L22: =Population!L22/Population!L$23 -> 0 | M22: =Population!M22/Population!M$23 -> 0 | N22: =Population!N22/Population!N$23 -> 0 | O22: =Population!O22/Population!O$23 -> 0 | P22: =Population!P22/Population!P$23 -> 0 | Q22: =Population!Q22/Population!Q$23 -> 0 | R22: =Population!R22/Population!R$23 -> 0 | S22: =Population!S22/Population!S$23 -> 0 | T22: =Population!T22/Population!T$23 -> 0 | U22: =Population!U22/Population!U$23 -> 0 | V22: =Population!V22/Population!V$23 -> 0 | W22: =Population!W22/Population!W$23 -> 0 | X22: =Population!X22/Population!X$23 -> 0 | Y22: =Population!Y22/Population!Y$23 -> 0 | Z22: =Population!Z22/Population!Z$23 -> 0 | AA22: =Population!AA22/Population!AA$23 -> 0 | AB22: =Population!AB22/Population!AB$23 -> 0 | AC22: =Population!AC22/Population!AC$23 -> 0 | AD22: =Population!AD22/Population!AD$23 -> 0 | AE22: =Population!AE22/Population!AE$23 -> 0 | AF22: =Population!AF22/Population!AF$23 -> 0 | AG22: =Population!AG22/Population!AG$23 -> 0 | AH22: =Population!AH22/Population!AH$23 -> 0 | AI22: =Population!AI22/Population!AI$23 -> 0 | AJ22: =Population!AJ22/Population!AJ$23 -> 0 | AK22: =Population!AK22/Population!AK$23 -> 0 | AL22: =Population!AL22/Population!AL$23 -> 0 | AM22: =Population!AM22/Population!AM$23 -> 0 | AN22: =Population!AN22/Population!AN$23 -> 0 | AO22: =Population!AO22/Population!AO$23 -> 0 | AP22: =Population!AP22/Population!AP$23 -> 0 | AQ22: =Population!AQ22/Population!AQ$23 -> 0 | AR22: =Population!AR22/Population!AR$23 -> 0 | AS22: =Population!AS22/Population!AS$23 -> 0 | AT22: =Population!AT22/Population!AT$23 -> 0 | AU22: =Population!AU22/Population!AU$23 -> 0 | AV22: =Population!AV22/Population!AV$23 -> 0 | AW22: =Population!AW22/Population!AW$23 -> 0 | AX22: =Population!AX22/Population!AX$23 -> 0 | AY22: =Population!AY22/Population!AY$23 -> 0 | AZ22: =Population!AZ22/Population!AZ$23 -> 0 | BA22: =Population!BA22/Population!BA$23 -> 0 | BB22: =Population!BB22/Population!BB$23 -> 0 | BD22: =EXP(-r_est*Lifetable!A22)*Lifetable!F22 -> 0 | BE22: 0
BD23: =SUM(BD2:BD17) -> 2.444806683
B40: Adjust the data range of the graphs (if needed)! (Click on the graph and adjust the range of the X column)

Sheet RV
A1: X | E1: vA | G1: mA | H1: RRV | I1: mA/RRV
A2: =IF(Lifetable!A2 = "", "", VALUE(Lifetable!A2)) -> 0 | B2: =EXP(r_est*(A2-1))/Lifetable!F2 -> 0.8022974701 | C2: =EXP(-r_est*A2)*Lifetable!H2 -> 0 | D2: =SUM(INDIRECT(ADDRESS(MATCH(A2, A$1:A$22),3,4)&":"&ADDRESS(MATCH(omega, A$1:A$22),3,4))) -> 1.021560049 | E2: =IFERROR(B2*D2, "") -> 0.8195950431 | G2: =EXP(-r_est)*Lifetable!G2 -> 0 | H2: =Lifetable!E2*EXP(-r_est)*E3 -> 0.8195950431 | I2: =G2/H2 -> 0
A3: =IF(Lifetable!A3 = "", "", VALUE(Lifetable!A3)) -> 1 | B3: =EXP(r_est*(A3-1))/Lifetable!F3 -> 1.333333333 | C3: =EXP(-r_est*A3)*Lifetable!H3 -> 0 | D3: 1.021560049 | E3: =B3*D3 -> 1.362080066 | G3: =EXP(-r_est)*Lifetable!G3 -> 0 | H3: =Lifetable!E3*EXP(-r_est)*E4 -> 1.362080066 | I3: =G3/H3 -> 0
A4: =IF(Lifetable!A4 = "", "", VALUE(Lifetable!A4)) -> 2 | B4: =EXP(r_est*(A4-1))/Lifetable!F4 -> 2.077367471 | C4: =EXP(-r_est*A4)*Lifetable!H4 -> 0.463450486 | D4: 1.021560049 | E4: =B4*D4 -> 2.122155616 | G4: =EXP(-r_est)*Lifetable!G4 -> 0.9627569641 | H4: =Lifetable!E4*EXP(-r_est)*E5 -> 1.159398652 | I4: 0.8303933787
A5: =IF(Lifetable!A5 = "", "", VALUE(Lifetable!A5)) -> 3 | B5: =EXP(r_est*(A5-1))/Lifetable!F5 -> 3.236591708 | C5: =EXP(-r_est*A5)*Lifetable!H5 -> 0.3470368089 | D5: 0.5581095633 | E5: 1.806372785 | G5: =EXP(-r_est)*Lifetable!G5 -> 1.123216458 | H5: =Lifetable!E5*EXP(-r_est)*E6 -> 0.6831563268 | I5: 1.644157295
A6: =IF(Lifetable!A6 = "", "", VALUE(Lifetable!A6)) -> 4 | B6: =EXP(r_est*(A6-1))/Lifetable!F6 -> 5.378872266 | C6: =EXP(-r_est*A6)*Lifetable!H6 -> 0.1536319052 | D6: 0.2110727544 | E6: 1.135333385 | G6: =EXP(-r_est)*Lifetable!G6 -> 0.8263663942 | H6: =Lifetable!E6*EXP(-r_est)*E7 -> 0.3089669906 | I6: 2.674610619
A7: =IF(Lifetable!A7 = "", "", VALUE(Lifetable!A7)) -> 5 | B7: =EXP(r_est*(A7-1))/Lifetable!F7 -> 13.40867313 | C7: =EXP(-r_est*A7)*Lifetable!H7 -> 0.05744084919 | D7: 0.05744084919 | E7: 0.7702055713 | G7: =EXP(-r_est)*Lifetable!G7 -> 0.7702055713 | H7: =Lifetable!E7*EXP(-r_est)*E8 -> 
A8: =IF(Lifetable!A8 = "", "", VALUE(Lifetable!A8)) ->  | B8: =EXP(r_est*(A8-1))/Lifetable!F8 ->  | C8: =EXP(-r_est*A8)*Lifetable!H8 ->  | G8: =EXP(-r_est)*Lifetable!G8 -> 0 | H8: =Lifetable!E8*EXP(-r_est)*E9 -> 
A9: =IF(Lifetable!A9 = "", "", VALUE(Lifetable!A9)) ->  | B9: =EXP(r_est*(A9-1))/Lifetable!F9 ->  | C9: =EXP(-r_est*A9)*Lifetable!H9 ->  | G9: =EXP(-r_est)*Lifetable!G9 -> 0 | H9: =Lifetable!E9*EXP(-r_est)*E10 -> 
A10: =IF(Lifetable!A10 = "", "", VALUE(Lifetable!A10)) ->  | B10: =EXP(r_est*(A10-1))/Lifetable!F10 ->  | C10: =EXP(-r_est*A10)*Lifetable!H10 ->  | G10: =EXP(-r_est)*Lifetable!G10 -> 0 | H10: =Lifetable!E10*EXP(-r_est)*E11 -> 
A11: =IF(Lifetable!A11 = "", "", VALUE(Lifetable!A11)) ->  | B11: =EXP(r_est*(A11-1))/Lifetable!F11 ->  | C11: =EXP(-r_est*A11)*Lifetable!H11 ->  | G11: =EXP(-r_est)*Lifetable!G11 -> 0 | H11: =Lifetable!E11*EXP(-r_est)*E12 -> 
A12: =IF(Lifetable!A12 = "", "", VALUE(Lifetable!A12)) ->  | B12: =EXP(r_est*(A12-1))/Lifetable!F12 ->  | C12: =EXP(-r_est*A12)*Lifetable!H12 ->  | G12: =EXP(-r_est)*Lifetable!G12 -> 0 | H12: =Lifetable!E12*EXP(-r_est)*E13 -> 
A13: =IF(Lifetable!A13 = "", "", VALUE(Lifetable!A13)) ->  | B13: =EXP(r_est*(A13-1))/Lifetable!F13 ->  | C13: =EXP(-r_est*A13)*Lifetable!H13 ->  | G13: =EXP(-r_est)*Lifetable!G13 -> 0 | H13: =Lifetable!E13*EXP(-r_est)*E14 -> 
A14: =IF(Lifetable!A14 = "", "", VALUE(Lifetable!A14)) ->  | B14: =EXP(r_est*(A14-1))/Lifetable!F14 ->  | C14: =EXP(-r_est*A14)*Lifetable!H14 ->  | G14: =EXP(-r_est)*Lifetable!G14 -> 0 | H14: =Lifetable!E14*EXP(-r_est)*E15 -> 
A15: =IF(Lifetable!A15 = "", "", VALUE(Lifetable!A15)) ->  | B15: =EXP(r_est*(A15-1))/Lifetable!F15 ->  | C15: =EXP(-r_est*A15)*Lifetable!H15 ->  | G15: =EXP(-r_est)*Lifetable!G15 -> 0 | H15: =Lifetable!E15*EXP(-r_est)*E16 -> 
A16: =IF(Lifetable!A16 = "", "", VALUE(Lifetable!A16)) ->  | B16: =EXP(r_est*(A16-1))/Lifetable!F16 ->  | C16: =EXP(-r_est*A16)*Lifetable!H16 ->  | G16: =EXP(-r_est)*Lifetable!G16 -> 0 | H16: =Lifetable!E16*EXP(-r_est)*E17 ->  | I16: =G16/H16 -> 
A17: =IF(Lifetable!A17 = "", "", VALUE(Lifetable!A17)) ->  | B17: =EXP(r_est*(A17-1))/Lifetable!F17 ->  | C17: =EXP(-r_est*A17)*Lifetable!H17 ->  | G17: =EXP(-r_est)*Lifetable!G17 -> 0 | H17: =Lifetable!E17*EXP(-r_est)*E18 -> 
A18: =IF(Lifetable!A18 = "", "", VALUE(Lifetable!A18)) ->  | B18: =EXP(r_est*(A18-1))/Lifetable!F18 ->  | C18: =EXP(-r_est*A18)*Lifetable!H18 ->  | G18: =EXP(-r_est)*Lifetable!G18 -> 0 | H18: =Lifetable!E18*EXP(-r_est)*E19 -> 
A19: =IF(Lifetable!A19 = "", "", VALUE(Lifetable!A19)) ->  | B19: =EXP(r_est*(A19-1))/Lifetable!F19 ->  | C19: =EXP(-r_est*A19)*Lifetable!H19 ->  | G19: =EXP(-r_est)*Lifetable!G19 -> 0 | H19: =Lifetable!E19*EXP(-r_est)*E20 -> 
A20: =IF(Lifetable!A20 = "", "", VALUE(Lifetable!A20)) ->  | B20: =EXP(r_est*(A20-1))/Lifetable!F20 ->  | C20: =EXP(-r_est*A20)*Lifetable!H20 ->  | G20: =EXP(-r_est)*Lifetable!G20 -> 0 | H20: =Lifetable!E20*EXP(-r_est)*E21 -> 
A21: =IF(Lifetable!A21 = "", "", VALUE(Lifetable!A21)) ->  | B21: =EXP(r_est*(A21-1))/Lifetable!F21 ->  | C21: =EXP(-r_est*A21)*Lifetable!H21 ->  | G21: =EXP(-r_est)*Lifetable!G21 -> 0 | H21: =Lifetable!E21*EXP(-r_est)*E22 -> 
A22: =IF(Lifetable!A22 = "", "", VALUE(Lifetable!A22)) ->  | B22: =EXP(r_est*(A22-1))/Lifetable!F22 ->  | C22: =EXP(-r_est*A22)*Lifetable!H22 ->  | G22: =EXP(-r_est)*Lifetable!G22 -> 0 | H22: =Lifetable!E22*EXP(-r_est)*E23 -> 0
A25: Adjust the data range of the graphs (if needed)! (Click on the graph and adjust the range of the X column)

Sheet settings
E1: small bird | G1: large mammal | K1: Human | L1: Morocco | P1: Niger | T1: Hungary | X1: Norway | AB1: China
D2: X | E2: dx | F2: mx | G2: X | H2: dx | I2: mx | K2: X | L2: dx | M2: mx | N2: N2010 | P2: dx | Q2: mx | R2: N2010 | T2: dx | U2: mx | V2: N2010 | X2: dx | Y2: mx | Z2: N2010 | AB2: dx | AC2: mx | AD2: N2010
D3: 0 | E3: 0.6 | F3: 0 | G3: 0 | H3: 0.6 | I3: 0 | K3: 0 | L3: 0.005932196105 | M3: 0 | N3: 3178.789 | P3: 0.02263786493 | Q3: 0 | R3: 3401.391 | T3: 0.001073549215 | U3: 0 | V3: 482.509 | X3: 0.0005374933888 | Y3: 0 | Z3: 306.019 | AB3: 0.00238605845 | AC3: 0 | AD3: 82581.426
D4: 1 | E4: 0.6 | F4: 1.57 | G4: 1 | H4: 0.1 | I4: 0 | K4: 5 | L4: 0.0003235551376 | M4: 0 | N4: 3043.813 | P4: 0.002409462216 | Q4: 0 | R4: 2675.425 | T4: 0 | U4: 0 | V4: 482.638 | X4: 0 | Y4: 0 | Z4: 297.572 | AB4: 0.0002045987902 | AC4: 0 | AD4: 78976.24
D5: 2 | E5: 0.6 | F5: 1.825 | G5: 2 | H5: 0.01 | I5: 0 | K5: 10 | L5: 0.0002776856016 | M5: 0 | N5: 3013.025 | P5: 0.001471670965 | Q5: 0 | R5: 2129.952 | T5: 0 | U5: 0 | V5: 510.162 | X5: 0 | Y5: 0 | Z5: 315.519 | AB5: 0.0002424318909 | AC5: 0 | AD5: 81134.357
D6: 3 | E6: 0.6 | F6: 1.35 | G6: 3 | H6: 0.01 | I6: 0 | K6: 15 | L6: 0.0003799439735 | M6: 0.034 | N6: 3185.968 | P6: 0.002008023514 | Q6: 0.202 | R6: 1619.595 | T6: 0.0002916123539 | U6: 0.0203 | V6: 624.832 | X6: 0 | Y6: 0.006 | Z6: 325.249 | AB6: 0.0003056263131 | AC6: 0.0069 | AD6: 101853.048
G7: 4 | H7: 0.01 | I7: 0 | K7: 20 | L7: 0.000543178391 | M7: 0.1004 | N7: 3022.955 | P7: 0.002901762289 | Q7: 0.323 | R7: 1231.576 | T7: 0.0002679850818 | U7: 0.0416 | V7: 605.459 | X7: 0.0005005157815 | Y7: 0.0502 | Z7: 309.147 | AB7: 0.000423600093 | AC7: 0.1255 | AD7: 130442.93
G8: 5 | H8: 0.01 | I8: 0.6 | K8: 25 | L8: 0.0006301298658 | M8: 0.1251 | N8: 2849.279 | P8: 0.003399015113 | Q8: 0.315 | R8: 1031.978 | T8: 0.0005412949887 | U8: 0.0753 | V8: 642.184 | X8: 0.0005004999995 | Y8: 0.1158 | Z8: 309.113 | AB8: 0.0005570777005 | AC8: 0.1178 | AD8: 102745.194
G9: 6 | H9: 0.01 | I9: 0 | K9: 30 | L9: 0.0006998000353 | M9: 0.1198 | N9: 2418.825 | P9: 0.003771247767 | Q9: 0.278 | R9: 901.033 | T9: 0.0006816217508 | U9: 0.0811 | V9: 818.424 | X9: 0.0005066880286 | Y9: 0.1223 | Z9: 315.905 | AB9: 0.0007319234457 | AC9: 0.048 | AD9: 96707.758
G10: 7 | H10: 0.01 | I10: 0.875 | K10: 35 | L10: 0.0008895097008 | M10: 0.0859 | N10: 2128.547 | P10: 0.004110095484 | Q10: 0.213 | R10: 734.834 | T10: 0.001023615422 | U10: 0.0397 | V10: 786.689 | X10: 0.0004787479019 | Y10: 0.058 | Z10: 359.651 | AB10: 0.0009348403278 | AC10: 0.0151 | AD10: 119589.716
G11: 8 | H11: 0.01 | I11: 0 | K11: 40 | L11: 0.001232379945 | M11: 0.0413 | N11: 1964.705 | P11: 0.005033603076 | Q11: 0.098 | R11: 618.149 | T11: 0.001827995244 | U11: 0.008 | V11: 674.438 | X11: 0.00088982063 | Y11: 0.0108 | Z11: 369.965 | AB11: 0.001267800798 | AC11: 0.0057 | AD11: 125626.361
G12: 9 | H12: 0.01 | I12: 0.95 | K12: 45 | L12: 0.001742052994 | M12: 0.0135 | N12: 1877.903 | P12: 0.006435308917 | Q12: 0.047 | R12: 592.828 | T12: 0.003761740998 | U12: 0.0003 | V12: 597.322 | X12: 0.001399921044 | Y12: 0.0006 | Z12: 336.511 | AB12: 0.001906907102 | AC12: 0.001 | AD12: 103768.205
G13: 10 | H13: 0.3 | I13: 0 | K13: 50 | L13: 0.002645934135 | M13: 0 | N13: 1652.63 | P13: 0.009260690349 | Q13: 0 | R13: 468.691 | T13: 0.006782842851 | U13: 0 | V13: 716.92 | X13: 0.002535319536 | Y13: 0 | Z13: 320.604 | AB13: 0.003149941322 | AC13: 0 | AD13: 82024.561
G14: 11 | H14: 0.6 | I14: 0.75 | K14: 55 | L14: 0.004111646742 | M14: 0 | N14: 1277.35 | P14: 0.01321675304 | Q14: 0 | R14: 348.18 | T14: 0.01024691045 | U14: 0 | V14: 792.066 | X14: 0.003831254057 | Y14: 0 | Z14: 294.559 | AB14: 0.005471075068 | AC14: 0 | AD14: 83184.949
K15: 60 | L15: 0.007101213597 | M15: 0 | N15: 805.888 | P15: 0.01902294686 | Q15: 0 | R15: 266.315 | T15: 0.01414254494 | U15: 0 | V15: 596.639 | X15: 0.006232810193 | Y15: 0 | Z15: 298.687 | AB15: 0.009787907213 | AC15: 0 | AD15: 56897.485
K16: 65 | L16: 0.01396394509 | M16: 0 | N16: 707.318 | P16: 0.0292948415 | Q16: 0 | R16: 190.79 | T16: 0.01949674117 | U16: 0 | V16: 514.692 | X16: 0.009195945902 | Y16: 0 | Z16: 216.681 | AB16: 0.01885181214 | AC16: 0 | AD16: 40421.925
K17: 70 | L17: 0.02578537026 | M17: 0 | N17: 582.527 | P17: 0.04980749404 | Q17: 0 | R17: 117.587 | T17: 0.02779382773 | U17: 0 | V17: 404.51 | X17: 0.01600103913 | Y17: 0 | Z17: 158.341 | AB17: 0.03405337339 | AC17: 0 | AD17: 32500.542
K18: 75 | L18: 0.05044884064 | M18: 0 | N18: 401.073 | P18: 0.08461370319 | Q18: 0 | R18: 63.568 | T18: 0.04428526923 | U18: 0 | V18: 322.544 | X18: 0.02861924582 | Y18: 0 | Z18: 131.938 | AB18: 0.05571018774 | AC18: 0 | AD18: 22523.131
K19: 80 | L19: 0.1024673725 | M19: 0 | N19: 222.757 | P19: 0.1395065931 | Q19: 0 | R19: 26.081 | T19: 0.07374226295 | U19: 0 | V19: 196.555 | X19: 0.0522552081 | Y19: 0 | Z19: 107.165 | AB19: 0.08658253388 | AC19: 0 | AD19: 11956.529
K20: 85 | L20: 0.1865054297 | M20: 0 | N20: 65.939 | P20: 0.2204541355 | Q20: 0 | R20: 6.649 | T20: 0.1212457864 | U20: 0 | V20: 126.837 | X20: 0.0931826653 | Y20: 0 | Z20: 76.302 | AB20: 0.1325363107 | AC20: 0 | AD20: 4964.66
K21: 90 | L21: 0.3320502257 | M21: 0 | N21: 9.478 | P21: 0.3861003861 | Q21: 0 | R21: 0.89 | T21: 0.1840876257 | U21: 0 | V21: 24.581 | X21: 0.1601724038 | Y21: 0 | Z21: 29.937 | AB21: 0.1885668487 | AC21: 0 | AD21: 1554.591
K22: 95 | L22: 0.5121638924 | M22: 0 | N22: 0.807 | P22: 0.56 | Q22: 0 | R22: 0.063 | T22: 0.3576081126 | U22: 0 | V22: 7.271 | X22: 0.3097893432 | Y22: 0 | Z22: 6.378 | AB22: 0.2698884547 | AC22: 0 | AD22: 272.323
K25: Human population data downloaded from: https://esa.un.org/unpd/wpp/DataQuery/ Note that age-specific fertility data were not available below the age of 15 and above 49.
